Cogmind - Beta 16.1 @@@ ROGUE MODE // 2026.05.03 @ 08:57:28 Player: H3-MLN Result: Establishing 0b11! Performance ------------- Evolutions (9) 4500 Regions Visited (34) 6800 Robots Destroyed (476) 2380 Value Destroyed (23478) 23478 Prototype IDs (372) 7440 Alien Tech Used (8) 1600 Bonus (42822) 42822 TOTAL SCORE: 89020 Bonus ------- High Alert Combat Kills 4704 Follower Combat Kills 4616 Hunted by Unchained 2000 Destroyed Unchained 3000 Entered Garrisons 400 Used RIF Installer 1000 Network Hubs Disabled 800 Registered with UFD 300 Met Optimus in HQ 500 Built Enhanced Grunts 300 A7 Reached Mainframe 300 Met R17 at Cetus 500 Met R17 at Research 2000 Destroyed MAIN.C Guards 500 Met MAIN.C 5000 Destroyed MAIN.C Shell 5000 Destroyed MAIN.C 10000 Met Architect 300 Destroyed A8 300 Destroyed A6 400 Win 3000 Friendly Fire -2098 Cogmind --------- Core Integrity 1/1600 Matter 198/300 Energy 97/100 System Corruption 29% Temperature Cool (0) Movement Core (50) Location 0b11 Command Parts ------- > --- POWER (2) -------- (None) > --- PROPULSION (8) --- (None) > --- UTILITY (13) ----- (None) > --- WEAPON (3) ------- (None) > --- INVENTORY (5) ---- Advanced Energy Well (500) Experimental Matter Compressor (500) Peak State ------------ > --- POWER ------------ Concept Zero-point Core Concept Zero-point Core > --- PROPULSION ------- Experimental Biomechanical Wings Experimental Biomechanical Wings Experimental Biomechanical Wings Experimental Biomechanical Wings Experimental Surge Thruster Experimental Surge Thruster Concept Fieldthrust Drive Concept Fieldthrust Drive > --- UTILITY ---------- Concept Antigrav Storage Unit Concept Chromion Battery Advanced Quantum Shading Machine Experimental Sensor Array Experimental Signal Interpreter Transport Network Coupler Concept Melee Reflex Suite Concept Weapon Articulator Femtoactuators Experimental Force Booster Experimental Transmission Jammer Concept Network Penetrator Blink Core > --- WEAPON ----------- Gamma Bomb Array Concept Deflector Sword Experimental Jetlance > --- INVENTORY -------- Concept Zero-point Core Experimental Heavy Siege Treads Concept Fieldthrust Drive Experimental Matter Compressor Advanced Sensor Array Experimental Weapon Cycler Femtoactuators Experimental Force Booster SHELL Armor Transdimensional Reconstructor Subatomic Replicator Concept Disintegration Ray Concept Plasma Driver Concept Plasma Driver Concept XC Strikerail Concept XC Strikerail Perforator Concept EMP Blanket Launcher Large Botcube [Rating: 298] Favorites ----------- Power Light Ion Engine Engine Light Ion Engine Power Core Concept Zero-point Core Reactor Vortex Chain Reactor Propulsion Wheel Treads Light Treads Leg Experimental Biometal Leg Wheel Wheel Hover Unit Cooled Antigrav System Flight Unit Improved Flight Unit Utility Hacking Suite Device Experimental Sensor Array Storage Large Storage Unit Processor Experimental Core Analyzer Hackware Hacking Suite Protection Heavy Regenerative Plating Weapon Power Sword Energy Gun Gamma Rifle Energy Cannon Concept Plasma Driver Ballistic Gun Helical Railgun Ballistic Cannon Hypervelocity Mass Driver Launcher Improved Grenade Launcher Special Weapon CPS Tube Impact Weapon Heavy Flail Slashing Weapon Power Sword Piercing Weapon Experimental Jetlance Special Melee Weapon Advanced Datajack Build | -11 -10 -10 -9 -9 -9 -8 -8 -8 -8 -8 -6 -6 -5 -5 -5 -5 -5 -5 -5 -5 -4 -4 -4 -4 -4 -4 -3 -3 -2 -2 -2 -1 -1 -1 ------- Run | Yrd Mat Min Mat Min Exi Min Mat Sto Rec Scr Fac Gar Fac Was Fac Gar Fac Upp Upp War Pro Fac Ext Cet Arc Hub Res Tes Res Qua Frg Acc Com Ac0 Slots Evolved 18 | . . . 2 . . . 2 . . . 4 . 2 . . . . . . . . 2 . . . . 2 . 2 . . 2 . . Power 1 | . . . . . . . . . . . . . . . . . . . . . . 1 . . . . . . . . . . . . Propulsion 5 | . . . 1 . . . 1 . . . . . . . . . . . . . . . . . . . . . 2 . . 1 . . Utility 11 | . . . 1 . . . 1 . . . 3 . 2 . . . . . . . . 1 . . . . 2 . . . . 1 . . Weapon 1 | . . . . . . . . . . . 1 . . . . . . . . . . . . . . . . . . . . . . . Parts Attached 467 | 7 1 2 35 1 . 2 9 22 3 18 6 13 8 5 7 8 13 3 6 . 2 12 44 7 13 9 20 29 7 5 64 27 46 13 Power 55 | 1 . . 3 . . . 2 2 . 1 1 . . 1 . . 2 . 1 . 1 2 10 . 1 2 3 2 . 1 13 . 3 3 Engine 14 | 1 . . 3 . . . 2 1 . 1 1 . . . . . 1 . . . . 1 1 . 1 . . . . . 1 . . . Core 15 | . . . . . . . . 1 . . . . . . . . 1 . 1 . 1 . 7 . . 1 . . . . 3 . . . Reactor 26 | . . . . . . . . . . . . . . 1 . . . . . . . 1 2 . . 1 3 2 . 1 9 . 3 3 Propulsion 114 | 2 . . 14 1 . . 2 8 1 6 1 1 1 . . 1 4 . 1 . . 4 12 2 1 3 4 7 3 . 14 6 13 2 Treads 20 | . . . 2 . . . . 6 1 2 . . . . . . . . 1 . . . . 2 . . . . . . . 3 3 . Leg 27 | 2 . . 8 . . . . . . 1 . . . . . . 1 . . . . 2 1 . . . . . . . . . 10 2 Wheel 14 | . . . . . . . . . . 3 1 1 1 . . 1 3 . . . . 2 2 . . . . . . . . . . . Hover 16 | . . . . . . . . . . . . . . . . . . . . . . . . . 1 . . 6 3 . 6 . . . Flight 37 | . . . 4 1 . . 2 2 . . . . . . . . . . . . . . 9 . . 3 4 1 . . 8 3 . . Utility 194 | 2 1 . 9 . . . 4 6 1 4 4 7 5 4 5 5 4 2 3 . . 4 16 3 9 4 12 10 4 3 24 14 21 4 Device 77 | 1 . . 4 . . . . 3 . 2 1 1 1 1 2 2 2 2 . . . 2 5 . 3 3 3 2 4 3 12 7 9 2 Storage 18 | 1 1 . 1 . . . . 1 . 1 1 . . . . . . . . . . . 3 . . . 2 4 . . 2 . 1 . Processor 28 | . . . 2 . . . 1 . . . . . . . . 1 . . 2 . . 1 3 . . . 3 . . . 6 3 6 . Hackware 40 | . . . 1 . . . 1 1 1 . 2 6 4 2 2 1 2 . . . . 1 2 . 6 1 3 1 . . . 3 . . Protection 31 | . . . 1 . . . 2 1 . 1 . . . 1 1 1 . . 1 . . . 3 3 . . 1 3 . . 4 1 5 2 Artifact . | . . . . . . . . . . . . . . . . . . . . . . . . . . . . . . . . . . . Weapon 104 | 2 . 2 9 . . 2 1 6 1 7 . 5 2 . 2 2 3 1 1 . 1 2 6 2 2 . 1 10 . 1 13 7 9 4 Energy Gun 27 | 2 . . 2 . . . . 2 . 2 . 1 . . . . 1 . 1 . . . . 1 . . . 2 . . 6 2 5 . Energy Cannon 14 | . . 1 3 . . . . . . . . . . . . . . . . . 1 1 1 . . . . 4 . . . 2 1 . Ballistic Gun 20 | . . . 2 . . 1 . 4 . . . . 1 . 2 . 2 . . . . 1 2 1 1 . . . . . . 1 2 . Ballistic Cannon 7 | . . . . . . . . . . . . 2 . . . . . . . . . . . . . . . 1 . . . . 1 3 Launcher 10 | . . 1 2 . . 1 1 . . . . . 1 . . 1 . . . . . . . . . . . . . . 1 1 . 1 Special Weapon 13 | . . . . . . . . . . 4 . 2 . . . 1 . 1 . . . . 1 . . . 1 1 . . 1 1 . . Impact Weapon 1 | . . . . . . . . . 1 . . . . . . . . . . . . . . . . . . . . . . . . . Slashing Weapon 9 | . . . . . . . . . . 1 . . . . . . . . . . . . 2 . . . . 1 . 1 4 . . . Piercing Weapon 2 | . . . . . . . . . . . . . . . . . . . . . . . . . . . . 1 . . 1 . . . Special Melee Weapon 1 | . . . . . . . . . . . . . . . . . . . . . . . . . 1 . . . . . . . . . Unidentified Prototypes 56 | . . . 1 . . . . 5 . 1 1 . 1 . . 1 1 1 . . . . 6 5 . . 4 15 1 1 9 . 2 1 Corrupted Parts 8 | . . . . . . . . . . . . . . . . . . . . . . . . 1 . . 1 . . . 1 . 1 4 System Corruption 49 | . . . . . . . . . . . . . . . . . . . . . . . . 10 . . 4 . . . 8 . 1 26 Parts Lost 93 | . . . 3 . . . 1 1 . 1 . 1 . . 3 1 9 . 2 . . 3 13 2 . . . 5 . . 10 7 9 22 Power 17 | . . . . . . . 1 1 . . . . . . . . 2 . . . . 1 3 . . . . . . . 4 . 2 3 Propulsion 25 | . . . 1 . . . . . . 1 . . . . 1 . 2 . 1 . . 2 3 1 . . . 2 . . 1 4 1 5 Utility 34 | . . . 2 . . . . . . . . 1 . . 2 1 1 . 1 . . . 5 . . . . 2 . . 4 2 3 10 Weapon 17 | . . . . . . . . . . . . . . . . . 4 . . . . . 2 1 . . . 1 . . 1 1 3 4 Highest Loss Streak 10 | . . . 2 . . . 1 1 . 1 . 1 . . 1 1 5 . 1 . . 2 7 2 . . . 5 . . 2 3 8 10 To Critical Strikes 2 | . . . . . . . . . . . . . . . . . . . . . . . 1 1 . . . . . . . . . . Average Backups 17 | 3 10 13 13 9 9 9 8 12 14 18 23 28 30 28 27 25 29 25 29 32 32 30 11 6 7 6 6 10 8 9 13 19 20 14 Power . | . 1 1 1 1 1 1 . . . . 2 . . . . . . 1 1 1 1 . . . . . . . 1 . . 1 1 . Propulsion 2 | 2 4 3 2 1 1 1 . 1 2 1 1 1 2 2 2 1 5 6 5 5 5 5 2 . 1 1 1 2 . . . 2 2 . Utility 9 | . 2 4 5 4 4 4 5 9 9 10 13 18 19 16 15 15 16 15 17 18 18 18 6 3 3 3 3 4 4 4 5 6 9 11 Weapon 3 | . 3 4 4 3 3 3 2 1 2 2 2 3 5 7 5 5 5 1 3 5 5 4 1 1 2 1 1 3 3 3 5 6 5 1 Tool/Special . | . . . . . . . . . . . . . . . . . . . . . . . . . . . . . . . . . . . Unused Backups 122 | . . 5 6 1 . . 3 1 2 11 . 6 10 3 1 4 5 . . . . 4 15 . . 1 1 9 . . 8 . 17 9 Power 8 | . . . 1 . . . . . . 1 . 2 1 . . . . . . . . . . . . . . . . . 1 . 2 . Propulsion 26 | . . 3 1 . . . . . . 4 . . 3 1 . 1 1 . . . . . 3 . . 1 1 2 . . . . 5 . Utility 65 | . . 1 1 . . . 1 1 2 5 . 2 5 2 . 3 4 . . . . 3 11 . . . . 6 . . 2 . 7 9 Weapon 23 | . . 1 3 1 . . 2 . . 1 . 2 1 . 1 . . . . . . 1 1 . . . . 1 . . 5 . 3 . Tool/Special . | . . . . . . . . . . . . . . . . . . . . . . . . . . . . . . . . . . . Average Slot Usage (%) 90 | . 100 100 97 100 100 100 97 96 97 92 81 83 79 85 85 85 79 87 88 92 94 91 85 84 89 92 92 91 98 94 88 85 84 82 Engine 4 | . 14 14 10 11 11 11 7 3 9 9 6 6 5 1 . . . . . . . 5 1 . . . . . . . . . . . Core 1 | . . . . . . . . 5 . . . . . . . . 1 5 5 5 5 . 3 3 . 2 3 . . . 2 6 . . Reactor 1 | . . . . . . . . . . . . . . 3 5 5 2 . . . . 1 3 5 5 5 4 8 8 8 5 . 2 4 Treads 3 | . . . . . . . . 23 18 7 6 2 . . . 4 . . 2 5 5 2 . 1 . . . . . . . 5 4 . Leg 6 | . 28 28 29 . . . . . . 4 . . . . . . . 3 5 5 5 8 . . . . . . . . . . 19 26 Wheel 7 | . . . . . . . . . . 17 18 23 23 23 19 16 14 16 14 16 16 13 3 . . . . . . . . . . . Hover 3 | . . . . . . . . . . . . . . . . . . . . . . . . . 4 1 . 11 28 29 25 . . . Flight 6 | . . . 2 33 33 33 35 10 18 5 . . . . . . . . . . . . 18 18 20 23 22 7 . . 1 18 1 . Device 12 | . 14 14 10 11 11 11 7 2 9 8 3 5 6 5 5 12 9 8 3 5 1 3 14 11 11 12 16 17 15 16 20 24 22 14 Storage 6 | . 14 14 11 11 11 11 9 9 9 8 6 6 5 5 5 5 5 5 5 5 5 5 5 5 5 5 4 4 4 4 4 3 3 4 Processor 4 | . . . . 11 11 11 9 9 1 . . . . . . 2 5 5 9 11 11 14 14 15 11 5 5 4 4 4 7 5 6 15 Hackware 12 | . . . . . . . 6 14 16 12 17 19 25 29 27 20 24 24 22 22 22 21 9 10 21 26 24 21 16 14 6 4 . . Protection 2 | . . . 7 . . . 3 . . . 6 1 . 1 2 1 . . 2 . 3 . 2 8 . . . 4 7 8 4 1 7 5 Energy Gun 2 | . 28 16 3 . . . . 3 6 2 . 1 . . . . 3 5 3 . . . 1 . . . . 3 1 . 1 1 2 . Energy Cannon 2 | . . 10 16 . . . . . . . . . . . . . . . . . 4 4 1 . . . . . 2 4 1 1 2 4 Ballistic Gun 2 | . . . 1 22 22 20 17 14 6 . . . . . 8 1 1 5 7 9 11 8 1 . . . . . . . . . . 2 Special Weapon 1 | . . . . . . . . . . 7 6 2 8 11 5 4 3 . . . . . . . . . . . . . . 1 . . Slashing Weapon 2 | . . . . . . . . . . 8 5 2 . . . 3 1 4 3 5 . . 3 5 5 5 4 3 3 3 4 . . . Peak Build Rating 298 | 7 8 10 28 21 21 21 30 39 41 53 73 87 93 89 109 106 106 100 111 111 113 118 115 113 103 119 137 181 204 221 285 298 284 244 Average Rating 108 | 5 7 9 20 21 21 21 28 33 38 37 68 80 83 81 94 97 94 96 100 108 109 112 93 90 93 103 116 152 193 215 229 275 257 206 On Entrance 94 | . 7 8 10 21 21 21 21 29 39 32 52 65 82 93 84 109 106 85 100 111 111 113 115 90 83 95 109 137 174 197 220 266 279 239 Avg Prop Armor Cover (%) 6 | . . . 10 . . . 3 1 1 6 6 4 . . 5 7 5 5 8 13 10 11 5 4 10 7 . 9 3 . 9 1 7 24 Naked Turns 6 | . . . . . . . . . . . . . . . . . . . . . . . . . . . . . . . . . . 6 Heaviest Build 256 | 11 26 28 47 19 19 20 24 41 38 227 233 255 251 236 254 256 245 236 244 221 244 243 237 50 33 34 42 85 96 93 135 141 160 150 Greatest Support 310 | 20 20 20 30 20 20 20 26 80 40 40 32 48 54 54 54 66 66 48 48 36 36 48 58 82 33 41 50 107 135 137 137 195 310 238 Greatest Overweight (x) 12 | . 1 1 9 . . . 6 1 . 10 10 7 5 4 6 6 8 4 12 6 6 9 6 1 1 . 1 1 . . 3 4 4 1 Average Overweight (x) 1 | . . 1 . . . . . . . 3 7 5 4 4 4 5 3 4 6 5 6 5 . . . . . . . . . . . . Largest Inventory Capacity 35 | 8 15 15 15 10 10 10 10 15 15 35 35 35 35 35 35 35 35 35 35 35 35 35 35 10 10 10 10 15 15 15 25 25 25 25 Average Capacity 22 | 7 13 15 14 10 10 10 10 14 15 27 35 35 35 35 35 35 35 35 35 35 35 35 14 10 10 10 10 14 15 15 19 25 25 24 Most Carried 35 | 6 15 15 15 10 10 10 10 15 15 35 33 35 35 35 35 35 35 32 35 35 35 35 35 10 10 10 10 15 15 15 25 25 25 18 Average Carried 20 | 3 10 14 14 9 10 10 9 13 14 19 30 34 33 34 34 31 33 29 32 35 35 34 13 9 10 9 9 13 14 14 18 23 23 14 Final Capacity 35 | 8 15 15 10 10 10 10 10 15 15 35 35 35 35 35 35 35 35 35 35 35 35 35 10 10 10 10 10 15 15 15 25 25 25 5 Final Carried 35 | 5 15 15 10 10 10 10 10 15 15 34 33 35 34 35 35 34 32 29 35 35 35 35 10 10 10 10 10 15 15 15 25 25 7 2 Class Distribution -------------------- 19% | Scavenger-Mutant 18% | Commander-Mutant 12% | Mutant 8% | Scavenger-Sprinter 7% | Bothacker-Gunner 6% | Hauler-Mutant 4% | Scavenger-Gunner 4% | Scavenger-Scout 3% | Sprinter Dominant Class ---------------- Mutant | -10/Materials Mutant | -10/Mines Mutant | -9/Materials Sprinter | -9/Mines Sprinter | -9/Exiles Sprinter | -8/Mines Mutant | -8/Materials Scavenger-Mutant | -8/Storage Commander-Mutant | -8/Recycling Commander-Mutant | -8/Scraptown Hauler-Mutant | -6/Factory Bothacker-Gunner | -6/Garrison Bothacker-Gunner | -5/Factory Bothacker-Gunner | -5/Waste Bothacker-Gunner | -5/Factory Bothacker-Mutant | -5/Garrison Bothacker-Gunner | -5/Factory Hauler-Mutant | -5/Upper Caves Scavenger-Mutant | -5/Upper Caves Hauler-Mutant | -5/Warlord Scavenger-Gunner | -4/Proximity Caves Hauler-Gunner | -4/Factory Scavenger-Scout | -4/Extension Scavenger-Mutant | -4/Cetus Scavenger-Scout | -4/Archives Wizard-Sprinter | -4/Hub_04(d) Hacker-Sprinter | -3/Research Scavenger-Mutant | -3/Testing Scavenger-Sprinter | -2/Research Scavenger-Sprinter | -2/Quarantine Scavenger-Sprinter | -2/Protoforge Scavenger-Mutant | -1/Access Scavenger-Mutant | -1/Command Scavenger-Gunner | -1/Access_0 Resources | -11 -10 -10 -9 -9 -9 -8 -8 -8 -8 -8 -6 -6 -5 -5 -5 -5 -5 -5 -5 -5 -4 -4 -4 -4 -4 -4 -3 -3 -2 -2 -2 -1 -1 -1 ----------- Run | Yrd Mat Min Mat Min Exi Min Mat Sto Rec Scr Fac Gar Fac Was Fac Gar Fac Upp Upp War Pro Fac Ext Cet Arc Hub Res Tes Res Qua Frg Acc Com Ac0 Matter Collected 18599 | 270 . 250 556 178 . . 824 1024 185 358 100 834 220 123 467 816 1272 167 272 . 80 345 1596 164 167 148 316 435 1037 167 3314 1311 977 626 Remotely . | . . . . . . . . . . . . . . . . . . . . . . . . . . . . . . . . . . . Salvage Created 28603 | 142 . 231 1475 237 . 18 869 1245 221 333 125 900 270 . 636 1199 2219 111 166 . . 647 2004 38 319 336 336 294 1099 681 4630 2859 3656 1307 Parts 1370 | 14 . 2 97 8 . 5 60 96 7 11 9 35 4 . 40 42 65 3 8 . . 32 56 . 32 11 25 22 49 39 271 122 145 60 Haulers Intercepted 22 | . . . 4 . . . 6 5 . . . . . . . . . . . . . . . . . 2 1 . 1 . . 3 . . Recyclers Shooed 11 | . . 1 . . . . 1 . . . . . . . . . 1 . . . . . 6 . . . . . . 1 . 1 . . Parts Field Recycled . | . . . . . . . . . . . . . . . . . . . . . . . . . . . . . . . . . . . Retrieved Matter . | . . . . . . . . . . . . . . . . . . . . . . . . . . . . . . . . . . . Parts Self-Destructed 26 | . . . . . . . . . . . . . . . . . . . 26 . . . . . . . . . . . . . . . Prevented . | . . . . . . . . . . . . . . . . . . . . . . . . . . . . . . . . . . . Parts Restored 11 | . . . . . . . . . . . . . . . . . . . . . . . . . . . . . 1 . 8 2 . . Broken 1 | . . . . . . . . . . . . . . . . . . . . . . . . . . . . . 1 . . . . . Faulty 10 | . . . . . . . . . . . . . . . . . . . . . . . . . . . . . . . 8 2 . . Kills | -11 -10 -10 -9 -9 -9 -8 -8 -8 -8 -8 -6 -6 -5 -5 -5 -5 -5 -5 -5 -5 -4 -4 -4 -4 -4 -4 -3 -3 -2 -2 -2 -1 -1 -1 ------- Run | Yrd Mat Min Mat Min Exi Min Mat Sto Rec Scr Fac Gar Fac Was Fac Gar Fac Upp Upp War Pro Fac Ext Cet Arc Hub Res Tes Res Qua Frg Acc Com Ac0 Combat Hostiles Destroyed 305 | . . 6 33 5 . 3 7 24 1 7 . 21 2 . 9 10 31 . 3 . . 8 14 . . . . . 7 2 61 25 12 14 Melee 49 | . . . . . . . . . . . . . . . . . 1 . . . . . 3 . . . . . . 2 24 14 5 . Guns 65 | . . 3 3 5 . . 3 20 1 . . . . . 6 1 7 . 3 . . 5 4 . . . . . . . 2 . . 2 Cannons 98 | . . 1 20 . . . . . . 1 . 10 1 . 1 4 6 . . . . 2 2 . . . . . 7 . 28 9 . 6 AOE 49 | . . 2 10 . . 3 4 4 . 4 . 5 . . 1 3 10 . . . . . 1 . . . . . . . 2 . . . Classes Destroyed 28 | 3 . 2 7 1 . . 2 . . 3 . 2 . . 2 . . 1 . . . . 1 . . . . . 1 . 3 . . . Worker 28 | 2 . . 2 . . . 5 1 . . 3 . . . 1 . 2 . . . . 1 . . . 3 . 2 . 1 1 3 1 . Builder 32 | . . . 1 . . . 3 4 . . . . 1 . 1 . 5 . . . . 2 1 . . . 1 2 . 4 7 . . . Tunneler 12 | 3 . . 1 . . 1 2 . . . 1 . . . . . 1 . . . . 2 . . . . 1 . . . . . . . Hauler 22 | . . . 4 . . . 6 5 . . . . . . . . . . . . . . . . . 2 1 . 1 . . 3 . . Recycler 33 | 1 . 2 2 . . . 1 . 2 . . . 1 . . . 6 . . . . . 8 . . . 1 . 3 2 . 4 . . Mechanic 1 | . . . . . . . . . . . . . . . . . . . . . . . . . . . . . . . 1 . . . Operator 19 | . . . 1 . . . 1 1 . . 1 . . . . . . . . . . . 1 . 9 . 1 . 1 1 . 2 . . Drone 5 | . . . . . . . 1 . . . . . . . . . . . . . . . . . . . . . . . 4 . . . Watcher 19 | . . . 4 . . . 2 . . . . 1 . . . . . . . . . . . 1 . 2 1 2 . 1 1 3 1 . Swarmer 42 | . . 2 11 . . 3 . 7 . . . 3 . . . . 3 . 1 . . . 3 . . . . . . . 4 5 . . Cutter 2 | . . . . . . . . . . . . 2 . . . . . . . . . . . . . . . . . . . . . . Grunt 88 | . . . 12 3 . . 1 6 . . . 12 2 . 1 8 23 . 2 . . 7 1 . . . . . . . 4 6 . . Brawler 6 | . . . . 1 . . . . . . . . . . 1 1 1 . . . . . 2 . . . . . . . . . . . Duelist 3 | . . . 1 1 . . . . . . . . . . . . 1 . . . . . . . . . . . . . . . . . Researcher 6 | . . . . . . . . . . . . . . . . . . 1 . . . . . . . . . 2 . 1 2 . . . Sentry 45 | . . . 9 . . . 2 11 1 . . 2 . . 1 . . . . . . . 3 . . . . . 3 . 12 1 . . Specialist 2 | . . . . . . . . . . . . . . . . . . . . . . . . . . . . . 2 . . . . . Hunter 18 | . . . . . . . 3 . . . . 1 . . 2 . . . . . . . 4 . . . . . 2 . . 4 2 . Programmer 39 | . . . . . . . . . . . . 1 . . 2 . 3 . . . . 1 . . . . . . . 2 21 6 3 . Heavy 1 | . . . . . . . . . . . . . . . 1 . . . . . . . . . . . . . . . . . . . Behemoth 5 | . . . . . . . . . . . . . . . 1 1 . . . . . . . . . . . . . . . 2 1 . M Guard 2 | . . . . . . . . . . . . . . . . . . . . . . . . . . . . . . . . . 2 . Enhanced Grunt 8 | . . . . . . . . . . . . . . . . . . . . . . . . . . . . . . . . . . 8 Enhanced Hunter 4 | . . . . . . . . . . . . . . . . . . . . . . . . . . . . . . . . . . 4 Hotshot 3 | . . . . . . . . . . . . . . . . . . . . . . . . . . . . . . . 3 . . . Decapitator 6 | . . . . . . . . . . . . . . . . . . . . . . . . . . . . . . . 6 . . . Immortal 3 | . . . . . . . . . . . . . . . . . . . . . . . . . . . . . . . 3 . . . Combat Programmer 2 | . . . . . . . . . . . . . . . . . . . . . . . . . . . . . . . . . 2 . V-Series 4 | . . . . . . . . . . . . . . . . . . . . . . . . . . . . . . . 4 . . . Federalist 2 | . . . . . . . . . . 2 . . . . . . . . . . . . . . . . . . . . . . . . Explorer 1 | . . . . . . . . . . 1 . . . . . . . . . . . . . . . . . . . . . . . . Scrapper 3 | . . . . . . . . . . 3 . . . . . . . . . . . . . . . . . . . . . . . . Botcube 2 | . . . . . . . . . . . . . . . . . . . . . . . 1 . . . . . . . . . 1 . Packrat 1 | . . . . . . . . . . . . . . . . . . 1 . . . . . . . . . . . . . . . . Tinkerer 1 | . . . . . . . . . . . . . . . . . . . . . . . . . . . . . . . 1 . . . Assembled 4 | . . 4 . . . . . . . . . . . . . . . . . . . . . . . . . . . . . . . . Thug 2 | . . . . . . . . . . 1 . . . . . . . . . . . . 1 . . . . . . . . . . . Butcher 1 | . . . . . . . . . . . . . . . . . . . . . . . 1 . . . . . . . . . . . Guerrilla 1 | . . . . . . . . . . . . . . . . . . . . . . . 1 . . . . . . . . . . . Best Kill Streak 14 | 4 . 3 8 2 . 4 6 6 1 5 1 8 1 . 2 5 11 . 2 . . 6 4 1 5 2 2 3 4 3 5 14 4 6 Combat Bots Only 9 | . . 3 5 2 . 3 2 6 1 5 . 8 1 . 2 5 6 . 2 . . 4 3 . . . . . 2 2 5 9 4 6 Max Kills in Single Turn 5 | 1 . 1 4 1 . 1 1 2 1 2 1 3 1 . 1 2 5 1 1 . . 2 2 1 1 1 1 1 2 1 2 3 1 2 Gunslinging . | . . . . . . . . . . . . . . . . . . . . . . . . . . . . . . . . . . . Exploded 3 | . . 1 3 . . 1 1 2 . 2 . 3 . . 1 2 2 . . . . . 1 . . . . . . . 1 . . . Melee 2 | . . . . . . . . . . . . . . . . . 1 . . . . . 1 . . . . . . 1 1 2 1 . Uniques/NPCs Destroyed 8 | . . . . . . . . . . . . . . . . . . . . . . . 1 . . . 1 1 . . . 1 2 2 DW-4LL (-4/Extension) Revision 17++ (-3/Research) BL-1NK (-3/Testing) 6S-H0T (-1/Access) MAIN.C Shell (-1/Command) MAIN.C (-1/Command) A8 (-1/Access_0) A6 (-1/Access_0) Combat | -11 -10 -10 -9 -9 -9 -8 -8 -8 -8 -8 -6 -6 -5 -5 -5 -5 -5 -5 -5 -5 -4 -4 -4 -4 -4 -4 -3 -3 -2 -2 -2 -1 -1 -1 -------- Run | Yrd Mat Min Mat Min Exi Min Mat Sto Rec Scr Fac Gar Fac Was Fac Gar Fac Upp Upp War Pro Fac Ext Cet Arc Hub Res Tes Res Qua Frg Acc Com Ac0 Hostile Shots Fired 2088 | . 1 12 97 9 . 4 45 111 . 30 . 46 10 . 62 46 174 . 23 . . 45 181 4 . . 7 58 44 20 220 198 98 543 Missed 770 | . . 2 29 4 . 2 21 35 . 11 . 21 5 . 21 14 51 . 8 . . 13 88 . . . 2 25 22 12 76 35 17 256 Hits 1318 | . 1 10 68 5 . 2 24 76 . 19 . 25 5 . 41 32 123 . 15 . . 32 93 4 . . 5 33 22 8 144 163 81 287 Melee 26 | . . . 5 . . . . . . . . 1 . . 1 . 11 . . . . . . . . . . . . . 6 . . 2 Projectile 1292 | . 1 10 63 5 . 2 24 76 . 19 . 24 5 . 40 32 112 . 15 . . 32 93 4 . . 5 33 22 8 138 163 81 285 AOE 10 | . . . . . . . . . . . . 1 1 . . . . . . . . . . . . . . . . . . . 8 . Critical Strikes 128 | . . . 1 . . . 1 6 . 1 . 2 . . 2 1 9 . . . . 3 4 2 . . . 3 . 1 14 31 6 41 Actively Blocked 41 | . . . . . . . . . . . . . . . . . . . . . . . . . . . . . . . . . . 41 Part Disruptions 10 | . . . . . . . . . . . . . . . . . . . . . . . . . . . . . . 1 1 . 3 5 Actively Blocked 1 | . . . . . . . . . . . . . . . . . . . . . . . . . . . . . . . . . . 1 Damage Taken 29702 | . 9 109 1008 56 . 55 396 1075 . 371 . 506 180 . 622 360 2509 . 221 . . 632 2398 151 . . 64 811 324 193 3838 2647 3047 8120 Core 3952 | . . 44 185 12 . 18 80 78 . 72 . 41 21 . 75 30 251 . 39 . . 83 741 55 . . . 169 113 . 348 317 132 1048 Absorbed by Shields 1827 | . . . . . . . . . . . . 18 . . 403 254 260 . . . . . 28 11 . . . . . . . . . 853 Redirected to Shielding 597 | . . . . . . . . . . . . . . . 82 . . . . . . . . . . . . 18 59 43 70 . . 325 Ignored by Resistances 1353 | . . . . . . . . . . . . . . . . . . . 12 . . 17 . . . . . . . . 17 599 302 406 Regen/Repaired (Parts) 4360 | . . . 11 . . . . 239 . . . . . . . . . . . . . 366 . . . . . 248 184 117 1201 549 1225 220 Core Remaining (%) 56 | 100 . 82 . . . 46 . . . 58 . 86 . . . . . . . . 21 . . . . 17 . 87 . . 68 . . . Volleys Fired 1104 | 15 13 13 89 21 . 4 69 100 4 17 3 69 37 10 43 36 82 5 22 . . 30 117 8 . 1 3 10 37 8 114 25 24 75 Largest 3 | 2 2 2 2 2 . 1 2 2 2 1 1 3 1 1 3 3 3 1 3 . . 3 3 1 . 1 1 2 1 1 3 2 3 3 Hottest 298 | 80 80 100 125 46 . 33 46 78 85 120 . 232 38 5 114 150 112 38 96 . . 163 148 240 . 30 30 150 130 130 180 280 240 298 Shots Fired 1722 | 30 26 24 163 42 . 4 129 185 9 17 3 96 37 10 84 48 124 6 36 . . 70 144 8 . 1 3 11 37 8 150 28 34 155 Gun 1005 | 30 26 13 44 42 . . 120 182 9 2 . 12 4 . 62 16 62 6 36 . . 48 128 1 . 1 2 8 . . 65 6 26 54 Cannon 482 | . . 9 109 . . . . . . . . 53 . . . 14 15 . . . . 22 14 7 . . . 1 37 8 77 22 4 90 Launcher 62 | . . 2 10 . . 4 9 3 . 3 . 5 . . . 2 10 . . . . . . . . . . . . . 3 . . 11 Special 173 | . . . . . . . . . . 12 3 26 33 10 22 16 37 . . . . . 2 . . . 1 2 . . 5 . 4 . Kinetic 819 | . . . 8 42 . . 120 175 4 . . 53 4 . 62 30 53 3 16 . . 38 72 . . . . . 14 . 52 6 . 67 Thermal 491 | 30 26 22 134 . . . . 4 . 2 . 12 . . . . 24 3 20 . . 32 21 1 . . . 1 23 8 25 16 10 77 Explosive 48 | . . 2 10 . . 4 9 3 . 3 . 5 . . . 2 10 . . . . . . . . . . . . . . . . . Electromagnetic 110 | . . . 11 . . . . 3 5 . . . . . . . . . . . . . 1 7 . . . 4 . . 58 . 10 11 Impact 153 | . . . . . . . . . . 11 1 19 10 1 8 9 29 . . . . . 48 . . 1 2 4 . . 10 . . . Entropic 16 | . . . . . . . . . . . . . . . . . . . . . . . . . . . . . . . . 6 10 . Robot Hit Streak 28 | 6 6 3 12 12 . . 28 19 2 5 1 10 12 3 7 14 10 3 11 . . 15 10 3 . . 2 4 5 . 11 24 20 21 Robot Miss Streak 12 | 5 3 3 5 4 . . 3 3 2 1 1 4 4 1 8 6 5 . 2 . . 2 7 2 . . . 1 12 . 7 4 1 3 Penetration Max 2 | . . . . . . . . . . . . 1 . . 1 1 2 . 1 . . . 2 . . . . . 1 . 1 2 . 1 Secondary Targets 5 | . . . . 1 . . 1 . . . . . . . 1 . 2 . . . . . . . . . . . . . . . . . Max Gunslinging Chain 1 | . . . . 1 . . 1 . . . . . . . 1 . 1 . . . . . . . . . . . . . . . . . Shots Hit Robots 1479 | 13 17 10 107 30 . . 92 128 4 7 8 53 23 7 48 56 83 4 17 . . 44 127 7 15 9 13 26 16 22 174 93 115 111 Core Hits 784 | 7 2 7 85 8 . 4 40 48 3 10 1 25 1 . 19 30 61 2 6 . . 23 44 4 6 5 5 9 22 9 124 51 40 83 Critical Kills 77 | . . . . . . . 1 1 . . . 7 . . 1 3 5 . . . . 1 4 . . . . . 8 . 31 7 5 3 Critical Parts Destroyed 102 | . . . . . . . 2 2 . 1 . 9 . . 3 3 11 . . . . 2 3 . . . . . 5 . 50 8 . 3 Critical Strikes 315 | . . . . . . . 3 3 . 1 . 16 . . 4 9 17 . . . . 3 18 . . . . 1 14 . 114 53 53 6 Burn 1 | . . . . . . . . . . . . . . . . . 1 . . . . . . . . . . . . . . . . . Meltdown 10 | . . . . . . . . . . . . . . . . . . . . . . 1 1 . . . . . . . . 2 5 1 Destroy 191 | . . . . . . . 3 3 . . . 16 . . 3 6 9 . . . . 2 16 . . . . . 14 . 101 13 . 5 Corrupt 1 | . . . . . . . . . . . . . . . . . . . . . . . . . . . . . . . 1 . . . Smash 10 | . . . . . . . . . . 1 . . . . 1 1 7 . . . . . . . . . . . . . . . . . Sever 14 | . . . . . . . . . . . . . . . . 2 . . . . . . 1 . . . . . . . 11 . . . Impale 88 | . . . . . . . . . . . . . . . . . . . . . . . . . . . . 1 . . 1 38 48 . Melee Attacks 617 | . . . . . . . . . . 7 7 18 1 . . 36 7 6 2 2 . 6 27 3 22 19 23 33 23 48 149 87 91 . Impact . | . . . . . . . . . . . . . . . . . . . . . . . . . . . . . . . . . . . Slashing 419 | . . . . . . . . . . 7 7 18 1 . . 36 7 6 2 2 . 6 27 3 20 18 21 22 18 48 147 3 . . Piercing 191 | . . . . . . . . . . . . . . . . . . . . . . . . . . . . 9 5 . 2 84 91 . Sneak Attacks 116 | . . . . . . . . . . . 6 1 1 . . . 3 2 . . . 2 14 . 12 5 11 9 4 10 17 11 8 . Combat Hostiles 1 | . . . . . . . . . . . . . . . . . . . . . . . . . . . . . . . . 1 . . Follow-up Attacks 10 | . . . . . . . . . . . . . . . . . . . . . . . . . . . . . . . 9 1 . . Martial Strikes 22 | . . . . . . . . . . . . . . . . . . . . . . . . . . . . . . . 5 17 . . Damage Inflicted 68871 | 153 185 227 2736 475 . 297 1704 2660 106 882 540 2372 470 . 1733 3474 5673 276 473 . . 1418 4826 236 1335 649 917 1553 473 2650 9908 7191 8106 5173 Guns 15270 | 153 185 45 564 475 . . 1295 2285 106 . . 68 . . 1247 199 839 37 473 . . 774 2845 . . . . 100 . . 1230 256 726 1368 Cannons 8557 | . . 102 1497 . . . . . . . . 522 . . . 173 183 . . . . 469 322 61 . . . . 97 . 818 1249 . 3064 Explosions 7692 | . . 80 674 . . 297 409 375 . 493 . 587 . . 72 741 2549 . . . . . . . . . . . . . 674 . . 741 Melee 32677 | . . . . . . . . . . . 540 128 80 . . 1710 339 239 . . . 175 1659 175 1335 649 917 1453 376 2650 7186 5686 7380 . Ramming 4 | . . . 1 . . . . . . . . . . . 3 . . . . . . . . . . . . . . . . . . . Kinetic 10896 | . . . 68 475 . . 1295 2220 56 . . 522 . . 1247 372 707 . 317 . . 640 442 . . . . . 97 . 721 143 . 1574 Thermal 8738 | 153 185 147 1814 . . . . 20 . . . 68 . . . . 779 37 156 . . 603 434 . . . . . . . 195 1106 121 2920 Explosive 5789 | . . 80 674 . . 297 409 375 . 493 . 587 . . 72 741 2061 . . . . . . . . . . . . . . . . . Electromagnetic 2603 | . . . 179 . . . . 45 50 . . . . . . . 24 . . . . . . 61 . . . 100 . . 1236 . 229 679 Impact 7532 | . . . . . . . . . . 389 . 1067 390 . 411 651 1763 . . . . . 2291 . . . . . . . 570 . . . Slashing 18431 | . . . . . . . . . . . 540 128 80 . . 1710 339 239 . . . 175 1659 175 1335 649 917 742 86 2650 6950 57 . . Piercing 14246 | . . . . . . . . . . . . . . . . . . . . . . . . . . . . 711 290 . 236 5629 7380 . Entropic 632 | . . . . . . . . . . . . . . . . . . . . . . . . . . . . . . . . 256 376 . Highest Corruption 29 | . . . . . . . . 5 5 . . . . 12 12 12 15 15 15 15 . 1 12 15 15 . 4 2 . 6 23 2 14 29 Average Corruption 7 | . . . . . . . . 4 5 . . . . 9 12 12 13 15 15 15 . 1 5 10 10 . 1 2 . 4 9 1 7 8 Corruption Purged 47 | . . . . . . . . . . . . . . . . . . . . . . . 7 . 15 . 4 . . 6 . . 15 . Corruption Blocked . | . . . . . . . . . . . . . . . . . . . . . . . . . . . . . . . . . . . Effects 415 | . . . . . . . . 30 19 . . . . 5 28 24 42 19 52 2 . 3 43 15 6 . 1 7 . 12 44 16 27 20 Message Errors 105 | . . . . . . . . 4 6 . . . . . 10 10 10 2 11 . . . 12 6 3 . . 2 . 3 11 5 8 2 Matter Fused 99 | . . . . . . . . 7 6 . . . . 2 7 3 12 9 10 . . 1 8 3 1 . . 2 . 5 11 3 6 3 Heat Flow Errors 46 | . . . . . . . . 5 . . . . . . 3 2 4 . 10 . . 1 7 1 . . . 1 . . 6 4 1 1 Energy Discharges 44 | . . . . . . . . 1 1 . . . . . 2 3 5 3 8 1 . 1 4 1 2 . 1 1 . . 5 2 1 2 Parts Rejected 6 | . . . . . . . . 1 1 . . . . . 1 . . . . . . . . . . . . . . . . . 1 2 Parts Fused 2 | . . . . . . . . . . . . . . . . . 1 . . . . . . . . . . . . . . . 1 . Data Loss (minor) 47 | . . . . . . . . 4 3 . . . . 2 . 3 4 2 5 1 . . 2 2 . . . 1 . 2 5 2 4 5 Data Loss (major) 24 | . . . . . . . . 4 1 . . . . 1 1 2 3 1 . . . . 6 1 . . . . . 2 1 . 1 . Misfires 16 | . . . . . . . . 3 1 . . . . . 2 . . 1 4 . . . 2 . . . . . . . 1 . 1 1 Alerts 9 | . . . . . . . . . . . . . . . . . 1 1 1 . . . 1 1 . . . . . . 2 . 1 1 Misdirections 8 | . . . . . . . . . . . . . . . . . 1 . 2 . . . . . . . . . . . 2 . 1 2 Weapon Failures 9 | . . . . . . . . 1 . . . . . . 2 1 1 . 1 . . . 1 . . . . . . . . . 1 1 Overload Shots 1 | . . . . . . . . . . . . . . . . . . . . . . . . 1 . . . . . . . . . . Overflow Damage 8467 | . . 27 43 . . 6 . 8 . 224 225 246 173 . 124 129 1219 169 . . . . 307 35 416 41 226 308 . 835 1303 1808 526 69 Projectiles 1899 | . . 7 . . . . . . . 208 . 212 123 . 124 26 958 . . . . . 3 . . . . . . . . 169 . 69 Explosions 324 | . . 20 43 . . 6 . 8 . 16 . 34 . . . . 195 . . . . . . . . . . . . . 2 . . . Melee 6244 | . . . . . . . . . . . 225 . 50 . . 103 66 169 . . . . 304 35 416 41 226 308 . 835 1301 1639 526 . Knockbacks 76 | . . . . . . . . . . 3 . 11 4 . 2 7 15 . . . . . 10 . . . . . 2 . 13 8 . 1 Impact 38 | . . . . . . . . . . 3 . 3 4 . 2 3 13 . . . . . 10 . . . . . . . . . . . Kinetic 36 | . . . . . . . . . . . . 7 . . . 4 2 . . . . . . . . . . . 2 . 13 7 . 1 Secondary 2 | . . . . . . . . . . . . 1 . . . . . . . . . . . . . . . . . . . 1 . . Self-Inflicted Damage 628 | . . 21 65 . . 36 . . . . . . . . 1 . 248 . . . . . . . . . . . . . . . . 257 Shots 15 | . . 1 2 . . 1 . . . . . . . . . . 6 . . . . . . . . . . . . . . . . 5 Rammed 1 | . . . . . . . . . . . . . . . 1 . . . . . . . . . . . . . . . . . . . Targets Rammed 2 | . . . 1 . . . . . . . . . . . 1 . . . . . . . . . . . . . . . . . . . Kicked 1 | . . . 1 . . . . . . . . . . . . . . . . . . . . . . . . . . . . . . . Crushed . | . . . . . . . . . . . . . . . . . . . . . . . . . . . . . . . . . . . Highest Temperature 460 | 72 126 195 201 18 . . 26 246 38 95 . 330 10 . 184 452 232 . 245 . . 241 285 154 . 101 179 128 311 18 208 460 87 232 Average Temperature 62 | 25 46 57 41 7 . . 7 38 17 37 . 90 6 . 46 181 103 . 81 . . 75 74 41 . 45 61 48 80 10 42 72 49 61 Received Heat Transfer 3422 | . . . 255 30 . . 90 558 . 223 . 145 12 . 107 158 645 . 48 . . 230 81 . . . 21 135 18 . 468 54 144 . Effects 12 | . . . . . . . . . . . . 2 . . . . 1 . 1 . . . 2 . . . . . 3 . . 3 . . Shutdowns 1 | . . . . . . . . . . . . . . . . . . . . . . . . . . . . . . . . 1 . . Energy Bleed 2 | . . . . . . . . . . . . . . . . . . . 1 . . . . . . . . . . . . 1 . . Interference 8 | . . . . . . . . . . . . 2 . . . . 1 . . . . . 2 . . . . . 3 . . . . . Short Circuit 1 | . . . . . . . . . . . . . . . . . . . . . . . . . . . . . . . . 1 . . Siege Activations 1 | . . . . . . . . . . . . . . . . . . . . . . . . . . . . . . . . . 1 . Total Turns 6 | . . . . . . . . . . . . . . . . . . . . . . . . . . . . . . . . . 6 . Longest Duration 6 | . . . . . . . . . . . . . . . . . . . . . . . . . . . . . . . . . 6 . Martial Activations . | . . . . . . . . . . . . . . . . . . . . . . . . . . . . . . . . . . . Shielding Activations . | . . . . . . . . . . . . . . . . . . . . . . . . . . . . . . . . . . . Robots Disrupted 1 | . . . . . . . . . . . . . . . . . . . . . . . . . . . . . . . 1 . . . Combat Hostiles 1 | . . . . . . . . . . . . . . . . . . . . . . . . . . . . . . . 1 . . . Robots Corrupted 38 | . . . . . . . . . . 2 . 6 2 . 1 2 8 . . . . . 5 . . . . . . . 5 . 2 5 Combat Hostiles 34 | . . . . . . . . . . 2 . 6 1 . 1 2 7 . . . . . 3 . . . . . . . 5 . 2 5 Parts Fried 61 | . . . 1 . . . . . . 2 . 5 4 . . . 12 . . . . . 6 . . . . 1 . . 10 . 2 18 Impact Corruptions 69 | . . . . . . . . . . 7 . 9 6 . 6 3 26 . . . . . 11 . . . . . . . 1 . . . Robots Melted 10 | . . . . . . . . . . . . . . . . . . . . . . 1 1 . . . . . . . . 2 5 1 Combat Hostiles 10 | . . . . . . . . . . . . . . . . . . . . . . 1 1 . . . . . . . . 2 5 1 Parts Melted 20 | . . . 6 . . . . . . 1 . . . . . . . . . . . 7 1 . . . . . . . . . 4 1 Heat Transferred 9515 | 350 425 322 3027 . . . . 37 . . . 100 . . . . 947 74 296 . . 959 722 . . . . . . . 150 434 111 1561 Parts Sabotaged . | . . . . . . . . . . . . . . . . . . . . . . . . . . . . . . . . . . . Parts Stolen . | . . . . . . . . . . . . . . . . . . . . . . . . . . . . . . . . . . . Parts Stripped . | . . . . . . . . . . . . . . . . . . . . . . . . . . . . . . . . . . . Power Chain Reactions 2 | . . . . . . . . . . . . . . . . . . . . . . . . . . . . . . . 1 . . 1 Alert | -11 -10 -10 -9 -9 -9 -8 -8 -8 -8 -8 -6 -6 -5 -5 -5 -5 -5 -5 -5 -5 -4 -4 -4 -4 -4 -4 -3 -3 -2 -2 -2 -1 -1 -1 ------- Run | Yrd Mat Min Mat Min Exi Min Mat Sto Rec Scr Fac Gar Fac Was Fac Gar Fac Upp Upp War Pro Fac Ext Cet Arc Hub Res Tes Res Qua Frg Acc Com Ac0 Maximum Alert Level 4 | . . . 2 . . . 1 1 . . . 4 4 2 4 4 4 . . . . . 2 1 1 2 . 1 1 . 4 3 2 . Low Security (%) 43 | 100 100 100 12 100 . 100 62 59 100 . 100 10 . . . . . . . . . 100 87 74 65 79 100 94 98 100 19 . . . Level 1 13 | . . . 49 . . . 37 40 . . . 3 . 55 39 . . . . . . . 2 25 34 17 . 5 1 . 24 . . . Level 2 22 | . . . 37 . . . . . . . . 16 67 44 . . . . . . . . 9 . . 2 . . . . 18 8 99 . Level 3 11 | . . . . . . . . . . . . 35 19 . 1 34 48 . . . . . . . . . . . . . 15 91 . . Level 4 8 | . . . . . . . . . . . . 33 12 . 58 65 51 . . . . . . . . . . . . . 22 . . . Level 5 . | . . . . . . . . . . . . . . . . . . . . . . . . . . . . . . . . . . . High Security . | . . . . . . . . . . . . . . . . . . . . . . . . . . . . . . . . . . . Max Security . | . . . . . . . . . . . . . . . . . . . . . . . . . . . . . . . . . . . Peak Influence 1515 | 15 11 50 464 193 . 98 279 281 155 . 44 1310 1177 419 1381 1474 1515 . . . . 147 462 278 282 477 114 231 220 198 1390 955 514 . Initial 966 | . . . . 163 . . 27 87 72 . . 18 687 407 261 966 773 . . . . . 63 249 85 . 13 15 96 48 81 826 464 . Average 388 | 3 . 2 327 153 . 75 160 152 80 . 6 847 746 396 846 1251 1152 . . . . 36 110 157 142 131 53 113 73 154 615 819 457 . Influence Increases 18026 | 30 20 68 1081 133 . 113 588 777 251 . 85 1352 888 56 1532 558 1207 . 95 . . 326 1193 298 267 957 358 613 530 368 2504 947 401 430 Destroy 0b10 Robot/C 7320 | . . 40 660 100 . 60 120 480 20 . . 600 380 40 460 300 620 . 60 . . 160 600 140 80 120 . 180 140 60 1180 480 240 . Destroy 0b10 Robot/NC 1110 | 30 . 10 75 . . 5 105 55 10 . 25 5 90 . 50 35 70 . . . . 25 60 5 45 50 30 40 25 45 85 75 60 . Destroy Leader 1304 | . . 10 196 20 . 10 66 150 . . . 30 62 . 104 40 90 . 20 . . 30 80 . . 58 4 24 52 12 122 92 32 . Allied During Kill 1141 | . . . . . . . . . 21 . . 76 154 8 172 36 . . . . . . 226 112 125 159 . 22 . . 24 . 6 . Trap Triggered on 0b10 100 | . . . 10 . . . . . . . . . . . . . . . . . . . . . . 70 . 20 . . . . . . Successful Hack 1011 | . 20 . 26 13 . . 83 17 20 . 29 30 39 . . 14 . . . . . 23 37 . . 14 135 82 106 110 150 63 . . Select Force Hacks 410 | . . . . . . . . . 180 . 30 . . . . . . . . . . . . . . 200 . . . . . . . . Disable Machine 1605 | . . . 30 . . . 15 45 . . . . 75 . 480 . 135 . . . . 30 60 15 15 60 . 150 . 75 285 60 45 30 Anti-Garrison Action 500 | . . . . . . . . . . . . 450 . . . 50 . . . . . . . . . . . . . . . . . . Destroy Structure 2055 | . . 8 54 . . 23 49 30 . . 1 101 88 8 266 68 202 . . . . 58 70 26 2 46 24 80 147 51 193 42 18 400 Partial Spotted 525 | . . . . . . 15 45 . . . . . . . . . . . . . . . . . . 180 45 15 60 15 120 30 . . Lose Combat Pursuer 945 | . . . 30 . . . 105 . . . . 60 . . . 15 90 . 15 . . . 60 . . . 120 . . . 345 105 . . Influence Decreases 17836 | 30 20 68 662 446 106 40 454 799 436 . 59 68 1035 846 524 465 1217 765 617 177 . 196 876 532 480 930 357 470 614 311 1270 1598 615 753 Entered New Map 6034 | . . . . 256 106 . 46 120 113 . . 8 623 756 112 415 701 543 133 177 . . 67 198 128 . 14 13 75 39 63 552 263 513 Time Decay 8338 | 30 20 68 632 190 . 40 398 554 323 . 59 . 362 90 262 . 416 222 464 . . 174 534 214 352 220 303 365 379 262 617 526 262 . Lost Part 827 | . . . 20 . . . 10 10 . . . 10 . . 30 10 90 . 20 . . 22 75 20 . . . 30 . . 100 70 90 220 Lost Ally 882 | . . . 10 . . . . 10 . . . 50 50 . 120 40 10 . . . . . 200 100 . 110 40 62 10 10 40 . . 20 Purge Threat 1755 | . . . . . . . . 105 . . . . . . . . . . . . . . . . . 600 . . 150 . 450 450 . . Squads Dispatched 88 | . . . 4 . . . 3 5 . . 4 . 3 . 9 . 9 . . . . 2 3 . . 8 6 6 6 2 8 8 2 . Investigation 18 | . . . 1 . . . . . . . 3 . . . 1 . 1 . . . . 1 . . . 5 3 . 2 . . 1 . . Extermination 25 | . . . . . . . . . . . . . 1 . 1 . 2 . . . . 1 . . . 1 1 4 2 2 5 4 1 . Reinforcement 27 | . . . 3 . . . 3 1 . . 1 . 1 . 3 . 2 . . . . . 3 . . 2 2 2 2 . 1 1 . . Assault 11 | . . . . . . . . . . . . . 1 . 1 . 4 . . . . . . . . . . . . . 2 2 1 . Garrison 7 | . . . . . . . . 4 . . . . . . 3 . . . . . . . . . . . . . . . . . . . Intercept . | . . . . . . . . . . . . . . . . . . . . . . . . . . . . . . . . . . . Searches Triggered . | . . . . . . . . . . . . . . . . . . . . . . . . . . . . . . . . . . . Unchained Authorized 5 | . . . . . . . . . . . . . . . . . . . . . . 1 1 . . . . 1 . . . 2 . . Construction Impeded 5 | . . . 1 . . . 1 . . . . . . . 1 . 1 . . . . . 1 . . . . . . . . . . . Haulers Reinforced 6 | . . . . . . . . . . . . . 1 . . . 1 . . . . . . . . 1 1 1 . . . 1 . . Active Scanning Responses . | . . . . . . . . . . . . . . . . . . . . . . . . . . . . . . . . . . . Cargo Convoy Interrupts . | . . . . . . . . . . . . . . . . . . . . . . . . . . . . . . . . . . . Stealth | -11 -10 -10 -9 -9 -9 -8 -8 -8 -8 -8 -6 -6 -5 -5 -5 -5 -5 -5 -5 -5 -4 -4 -4 -4 -4 -4 -3 -3 -2 -2 -2 -1 -1 -1 --------- Run | Yrd Mat Min Mat Min Exi Min Mat Sto Rec Scr Fac Gar Fac Was Fac Gar Fac Upp Upp War Pro Fac Ext Cet Arc Hub Res Tes Res Qua Frg Acc Com Ac0 Distress Signals 57 | . . . 7 . . . 3 2 . . . . 1 . 2 . . . . . . . 2 2 . 3 9 . 1 . . 1 24 . Communications Jammed 30 | . . . . . . . . . . . . . . . . . 9 . . . . . . . . . . . 7 . 9 1 4 . Distress Signals 28 | . . . . . . . . . . . . . . . . . 9 . . . . . . . . . . . 7 . 7 1 4 . Times Spotted 617 | . 8 6 50 5 . 6 23 29 . 16 1 37 25 6 34 21 50 . 10 . . 11 31 11 5 7 20 12 14 8 84 40 18 29 Peak Tracking Total 10 | . 2 2 6 3 . 4 6 5 . 8 1 7 7 2 6 6 9 . 8 . . 4 5 5 . 2 9 4 5 2 9 10 4 8 Tactical Retreats 38 | . . . 2 . . . 6 . . . . 4 . . . 1 5 . 1 . . . 2 . . . 3 . . . 11 3 . . ECM-based Alert Blocks 2 | . . . . . . . . . . . . . . . . . . . . . . . . . . . 2 . . . . . . . ID Masks Used 1 | . . . . . . . . . . . . . . . . . . . . . . . . . . . . . . . . 1 . . IFF Responses 558 | . . . . . . . . . . . . . . . . . . . . . . . . . . . . . . . . 558 . . Traps | -11 -10 -10 -9 -9 -9 -8 -8 -8 -8 -8 -6 -6 -5 -5 -5 -5 -5 -5 -5 -5 -4 -4 -4 -4 -4 -4 -3 -3 -2 -2 -2 -1 -1 -1 ------- Run | Yrd Mat Min Mat Min Exi Min Mat Sto Rec Scr Fac Gar Fac Was Fac Gar Fac Upp Upp War Pro Fac Ext Cet Arc Hub Res Tes Res Qua Frg Acc Com Ac0 Traps Triggered 41 | . . . . . . . 1 4 . . . 4 1 . 1 2 . . . . . . 8 . . . . 1 2 1 12 . 4 . Indirectly 2 | . . . . . . . . . . . . . . . . . . . . . . . . . . . . . . . 2 . . . Trap Hack Attempts . | . . . . . . . . . . . . . . . . . . . . . . . . . . . . . . . . . . . Triggered . | . . . . . . . . . . . . . . . . . . . . . . . . . . . . . . . . . . . Disarmed 8 | . . . . . . . . . . . . . . . . . . . . . . . . . . 8 . . . . . . . . Reprogrammed 16 | . . . . . . . . . . . . . . . . . . . . . . . . . . 10 . 6 . . . . . . Reused 11 | . . . 1 . . . . . . . . . . . . . . . . . . . . . . 7 . 3 . . . . . . Traps Extracted . | . . . . . . . . . . . . . . . . . . . . . . . . . . . . . . . . . . . Installed 1 | . . . 1 . . . . . . . . . . . . . . . . . . . . . . . . . . . . . . . Triggered 10 | . . . 1 . . . . . . . . . . . . . . . . . . . . . . 7 . 2 . . . . . . Most Traps Carried 1 | . . 1 1 . . . . . . . . . . . . . . . . . . . . . . . . . . . . . . . Objects Rigged 1 | . . . . . . . . . . . . . . . . . . . . . . . . . . 1 . . . . . . . . Machines | -11 -10 -10 -9 -9 -9 -8 -8 -8 -8 -8 -6 -6 -5 -5 -5 -5 -5 -5 -5 -5 -4 -4 -4 -4 -4 -4 -3 -3 -2 -2 -2 -1 -1 -1 ---------- Run | Yrd Mat Min Mat Min Exi Min Mat Sto Rec Scr Fac Gar Fac Was Fac Gar Fac Upp Upp War Pro Fac Ext Cet Arc Hub Res Tes Res Qua Frg Acc Com Ac0 Machines Disabled 123 | . . . 2 . . . 1 3 . 7 . 4 5 . 32 1 9 . 1 . . 2 4 1 1 4 . 10 . 5 22 4 3 2 Max in Single Turn 3 | . . . 1 . . . 1 1 . 1 . 1 . . 1 1 3 . 1 . . 1 1 1 . 1 . 1 . 1 1 2 1 1 Garrison Access 8 | . . . . . . . . 1 . . . . . . . . . . . . . . . . . 1 . 1 2 1 1 1 . . Garrison Relay 4 | . . . . . . . . . . . . 3 . . . 1 . . . . . . . . . . . . . . . . . . Network Hub 4 | . . . . . . . . . . . . . . . . . . . . . . . . . . 4 . . . . . . . . Machines Repaired . | . . . . . . . . . . . . . . . . . . . . . . . . . . . . . . . . . . . Machines Dismantled . | . . . . . . . . . . . . . . . . . . . . . . . . . . . . . . . . . . . Machines Sabotaged 4 | . . . . . . . . . . . . . . . . . . . . . . . . . . 4 . . . . . . . . Overloaded Fab Kills . | . . . . . . . . . . . . . . . . . . . . . . . . . . . . . . . . . . . Hacking | -11 -10 -10 -9 -9 -9 -8 -8 -8 -8 -8 -6 -6 -5 -5 -5 -5 -5 -5 -5 -5 -4 -4 -4 -4 -4 -4 -3 -3 -2 -2 -2 -1 -1 -1 --------- Run | Yrd Mat Min Mat Min Exi Min Mat Sto Rec Scr Fac Gar Fac Was Fac Gar Fac Upp Upp War Pro Fac Ext Cet Arc Hub Res Tes Res Qua Frg Acc Com Ac0 Machines Accessed 188 | . 6 1 15 2 1 . 11 10 12 2 5 2 3 . 4 2 3 1 1 . . 5 14 1 . 13 17 14 12 11 11 6 3 . Terminals 129 | . 5 . 10 2 . . 8 7 6 . 3 2 2 . 2 2 1 1 . . . 3 13 1 . 12 9 9 8 8 8 4 3 . Fabricators 7 | . . . . . . . . . . . . . 1 . . . . . . . . . . . . . 3 . 2 . . 1 . . Repair Stations 7 | . . . 2 . . . . 1 . . . . . . . . . . . . . 1 . . . . . 1 . 1 1 . . . Recycling Units 18 | . 1 . 1 . . . 2 1 6 . . . . . 1 . 2 . . . . 1 1 . . . 2 . . . . . . . Scanalyzers 12 | . . . 2 . . . 1 . . . 1 . . . . . . . . . . . . . . . 3 3 . 1 1 . . . Garrison Access 10 | . . . . . . . . 1 . . 1 . . . 1 . . . . . . . . . . 1 . 1 2 1 1 1 . . Total Hacks 786 | . 19 1 42 5 4 . 41 30 80 7 14 5 6 . 8 6 14 1 1 . . 23 31 1 . 70 100 70 66 49 52 33 7 . Successful 516 | . 9 1 17 2 4 . 24 23 69 7 9 2 3 . 5 1 12 1 1 . . 15 15 . . 61 76 46 35 28 34 15 1 . Failed 263 | . 9 . 24 3 . . 16 7 10 . 5 3 3 . 3 5 2 . . . . 8 16 1 . 8 23 23 31 21 18 18 6 . Catastrophic 27 | . . . 1 1 . . 1 . 1 . 1 . . . . . . . . . . . 1 1 . . 7 3 3 1 2 4 . . Database Lockouts 7 | . 1 . 1 . . . 1 . 1 . . . . . . . . . . . . . . . . 1 1 1 . . . . . . Manual 302 | . 11 . 21 5 . . 19 7 25 . 5 5 . . . 4 4 . . . . 4 8 1 . 45 53 18 19 21 12 15 . . Terminals 529 | . 16 . 29 5 . . 29 17 34 . 6 5 4 . 4 6 2 1 . . . 7 29 1 . 68 51 52 52 35 46 23 7 . Fabricators 41 | . . . . . . . . . . . . . 2 . . . . . . . . . . . . . 21 . 10 . . 8 . . Repair Stations 33 | . . . 6 . . . . 7 . . . . . . . . . . . . . 9 . . . . . 5 . 5 1 . . . Recycling Units 90 | . 3 . 2 . . . 4 5 46 . . . . . 2 . 12 . . . . 7 2 . . . 7 . . . . . . . Scanalyzers 59 | . . . 5 . . . 8 . . . 4 . . . . . . . . . . . . . . . 21 11 . 7 3 . . . Garrison Access 21 | . . . . . . . . 1 . . 4 . . . 2 . . . . . . . . . . 2 . 2 4 2 2 2 . . Terminal Hacks 211 | . 3 1 8 2 4 . 4 8 17 7 2 2 2 . 2 1 . 1 1 . . 3 10 . . 35 18 23 16 9 23 8 1 . Record 18 | . . . . . 4 . . . 5 2 . . . . . . . 1 1 . . . . . . . . . . . 5 . . . Part Schematic 21 | . . . 1 . . . . . 2 . . 1 1 . . . . . . . . . . . . 3 7 5 1 . . . . . Robot Schematic 3 | . . . 1 1 . . . . . . . . . . . . . . . . . . . . . . . . . 1 . . . . Robot Analysis 17 | . 2 . . 1 . . . . . 5 . . . . . . . . . . . . . . . 3 2 3 1 . . . . . Prototype ID Bank 8 | . 1 . 1 . . . . 1 . . . . . . . . . . . . . . . . . 1 . 2 2 . . . . . Open Door 18 | . . 1 . . . . . 5 . . . . . . . . . . . . . 1 9 . . . . 1 . . . . 1 . Open DSF 2 | . . . . . . . . . . . . . . . 1 . . . . . . 1 . . . . . . . . . . . . Level Access Points 4 | . . . . . . . . . . . . . . . . . . . . . . . . . . 1 . 1 . . 1 1 . . Branch Access Points 7 | . . . 1 . . . 1 . . . 1 . . . 1 . . . . . . . . . . . 1 . 1 . . 1 . . Emergency Access Points 4 | . . . . . . . . . . . . . . . . . . . . . . . . . . 2 1 . . . 1 . . . Machine Index 6 | . . . . . . . . . . . . . . . . . . . . . . . . . . 1 1 1 1 1 . 1 . . Terminal Index 5 | . . . . . . . . . 2 . . . . . . . . . . . . 1 . . . . . . 1 . 1 . . . Scanalyzer Index 1 | . . . . . . . . . . . . . . . . . . . . . . . . . . . . . . . 1 . . . Garrison Index 1 | . . . . . . . . . . . . . . . . . . . . . . . . . . . . . . 1 . . . . Alert Level 9 | . . . . . . . . . 8 . 1 . . . . . . . . . . . . . . . . . . . . . . . Unreport Threat 12 | . . . . . . . . 1 . . . . . . . . . . . . . . . . . 4 . . 1 . 3 3 . . Locate Traps 14 | . . . 1 . . . 1 . . . . . . . . . . . . . . . 1 . . 2 1 1 1 1 5 . . . Disarm Traps 2 | . . . . . . . . . . . . . . . . . . . . . . . . . . 2 . . . . . . . . Reprogram Traps 3 | . . . . . . . . . . . . . . . . . . . . . . . . . . 2 . 1 . . . . . . Recall Investigation 1 | . . . . . . . . . . . . . . . . . . . . . . . . . . . . . 1 . . . . . Recall Extermination 8 | . . . . . . . . . . . . . . . . . . . . . . . . . . 1 1 3 2 1 . . . . Recall Reinforcements 2 | . . . . . . . . . . . . . . . . . . . . . . . . . . 2 . . . . . . . . Hauler Manifests 6 | . . . 1 . . . 1 . . . . . . . . . . . . . . . . . . 1 1 1 1 . . . . . Registered Components 7 | . . . . . . . . . . . . . 1 . . . . . . . . . . . . 1 1 1 1 1 . 1 . . Registered Prototypes 4 | . . . . . . . . . . . . . . . . . . . . . . . . . . 1 1 . 1 1 . . . . Zone Layout 25 | . . . 2 . . . 1 1 . . . . . . . . . . . . . . . . . 8 1 3 1 2 5 1 . . Garrison Registry 2 | . . . . . . . . . . . . 1 . . . 1 . . . . . . . . . . . . . . . . . . Proto ID Catalog 1 | . . . . . . . . . . . . . . . . . . . . . . . . . . . . . . . 1 . . . Fabricator Hacks 19 | . . . . . . . . . . . . . 1 . . . . . . . . . . . . . 10 . 5 . . 3 . . Network Status 4 | . . . . . . . . . . . . . 1 . . . . . . . . . . . . . 1 . 1 . . 1 . . Load Schematic 8 | . . . . . . . . . . . . . . . . . . . . . . . . . . . 5 . 2 . . 1 . . Build 7 | . . . . . . . . . . . . . . . . . . . . . . . . . . . 4 . 2 . . 1 . . Repair Station Hacks 21 | . . . 3 . . . . 6 . . . . . . . . . . . . . 6 . . . . . 2 . 3 1 . . . Scan Component 11 | . . . 2 . . . . 3 . . . . . . . . . . . . . 3 . . . . . 1 . 2 . . . . Repair 8 | . . . 1 . . . . 3 . . . . . . . . . . . . . 2 . . . . . 1 . 1 . . . . Refit 2 | . . . . . . . . . . . . . . . . . . . . . . 1 . . . . . . . . 1 . . . Recycling Unit Hacks 61 | . 2 . 1 . . . 2 2 39 . . . . . 1 . 8 . . . . 2 1 . . . 3 . . . . . . . Report Inventory 55 | . 1 . 1 . . . 2 2 38 . . . . . 1 . 6 . . . . 1 1 . . . 2 . . . . . . . Retrieve Components 6 | . 1 . . . . . . . 1 . . . . . . . 2 . . . . 1 . . . . 1 . . . . . . . Scanalyzer 43 | . . . 2 . . . 7 . . . 2 . . . . . . . . . . . . . . . 19 9 . 3 1 . . . Insert Component 14 | . . . 1 . . . 3 . . . 1 . . . . . . . . . . . . . . . 4 2 . 2 1 . . . Analyze 17 | . . . 1 . . . 1 . . . . . . . . . . . . . . . . . . . 10 5 . . . . . . Retrieve Study 12 | . . . . . . . 3 . . . 1 . . . . . . . . . . . . . . . 5 2 . 1 . . . . Garrison Access Hacks 19 | . . . . . . . . 1 . . 2 . . . 2 . . . . . . . . . . 2 . 2 4 2 2 2 . . Unlock Access 2 | . . . . . . . . . . . 1 . . . 1 . . . . . . . . . . . . . . . . . . . Seal Access 8 | . . . . . . . . 1 . . . . . . . . . . . . . . . . . 1 . 1 2 1 1 1 . . Coupler Status 9 | . . . . . . . . . . . 1 . . . 1 . . . . . . . . . . 1 . 1 2 1 1 1 . . Unauthorized Hacks 142 | . 4 . 3 . . . 11 6 13 . 3 . . . . . 4 . . . . 4 4 . . 24 26 10 10 11 7 2 . . Terminals 99 | . 4 . 2 . . . 11 3 7 . 1 . . . . . . . . . . . 3 . . 24 11 9 6 10 6 2 . . Track 32 | . . . 1 . . . 3 1 . . . . . . . . . . . . . . 1 . . 8 2 5 2 5 3 1 . . Assimilate 11 | . 1 . . . . . . . . . . . . . . . . . . . . . . . . 2 5 . 1 2 . . . . Botnet 24 | . 2 . 1 . . . 2 1 2 . . . . . . . . . . . . . 1 . . 4 2 2 2 2 2 1 . . Detonate 2 | . . . . . . . . . . . . . . . . . . . . . . . . . . 2 . . . . . . . . Disrupt 1 | . . . . . . . . . . . . . . . . . . . . . . . . . . 1 . . . . . . . . Operators 10 | . 1 . . . . . 1 1 . . 1 . . . . . . . . . . . 1 . . 1 . 1 1 1 1 . . . Skim 14 | . . . . . . . 5 . 5 . . . . . . . . . . . . . . . . 1 2 1 . . . . . . Sabotage 5 | . . . . . . . . . . . . . . . . . . . . . . . . . . 5 . . . . . . . . Fabricators 15 | . . . . . . . . . . . . . . . . . . . . . . . . . . . 11 . 4 . . . . . Report 3 | . . . . . . . . . . . . . . . . . . . . . . . . . . . 2 . 1 . . . . . Prioritize 4 | . . . . . . . . . . . . . . . . . . . . . . . . . . . 3 . 1 . . . . . Liberate 4 | . . . . . . . . . . . . . . . . . . . . . . . . . . . 3 . 1 . . . . . Haulers 3 | . . . . . . . . . . . . . . . . . . . . . . . . . . . 2 . 1 . . . . . Recompile 1 | . . . . . . . . . . . . . . . . . . . . . . . . . . . 1 . . . . . . . Repair Stations . | . . . . . . . . . . . . . . . . . . . . . . . . . . . . . . . . . . . Recycling Units 23 | . . . 1 . . . . 3 6 . . . . . . . 4 . . . . 4 1 . . . 4 . . . . . . . Monitor 3 | . . . . . . . . . . . . . . . . . 1 . . . . 1 . . . . 1 . . . . . . . Reject 4 | . . . . . . . . 1 . . . . . . . . 1 . . . . 1 . . . . 1 . . . . . . . Recyclers 5 | . . . 1 . . . . 1 . . . . . . . . 1 . . . . 1 . . . . 1 . . . . . . . Mask 5 | . . . . . . . . 1 . . . . . . . . 1 . . . . 1 1 . . . 1 . . . . . . . Tunnel 6 | . . . . . . . . . 6 . . . . . . . . . . . . . . . . . . . . . . . . . Scanalyzers 3 | . . . . . . . . . . . . . . . . . . . . . . . . . . . . 1 . 1 1 . . . Researchers 3 | . . . . . . . . . . . . . . . . . . . . . . . . . . . . 1 . 1 1 . . . Garrison Access 2 | . . . . . . . . . . . 2 . . . . . . . . . . . . . . . . . . . . . . . Reprogram 1 | . . . . . . . . . . . 1 . . . . . . . . . . . . . . . . . . . . . . . Eject 1 | . . . . . . . . . . . 1 . . . . . . . . . . . . . . . . . . . . . . . Data Cores Recovered 4 | . . . . . . . . . . . . . . . . . . . . . . . . . . 1 1 . . . . 2 . . Used 1 | . . . . . . . . . . . . . . . . . . . . . . . . . . . 1 . . . . . . . Hacking Detections 148 | . 6 . 14 2 . . 11 7 12 . 4 2 3 . 3 2 3 . . . . 4 10 1 . 12 15 7 9 6 7 6 2 . Full Trace Events 10 | . . . 2 . . . . . . . 1 . . . . . 1 . . . . 1 . . . . 2 . 2 . . 1 . . Feedback Events . | . . . . . . . . . . . . . . . . . . . . . . . . . . . . . . . . . . . Feedback Blocked . | . . . . . . . . . . . . . . . . . . . . . . . . . . . . . . . . . . . Robot Schematics Acquired 7 | . . . 1 1 . . . . . . . . . . . . . . . . . . . . . . . 3 . 2 . . . . Robots Built . | . . . . . . . . . . . . . . . . . . . . . . . . . . . . . . . . . . . Authchips . | . . . . . . . . . . . . . . . . . . . . . . . . . . . . . . . . . . . Time . | . . . . . . . . . . . . . . . . . . . . . . . . . . . . . . . . . . . Total Robot Build Rating . | . . . . . . . . . . . . . . . . . . . . . . . . . . . . . . . . . . . Part Schematics Acquired 45 | . . . 1 . . . 1 . 2 . . 1 1 . . . . . . . . . . . . 3 11 16 1 4 4 . . . Parts Built 8 | . . . . . . . . . . . . . . . . . . . . . . . . . . . 4 . 3 . . 1 . . Authchips 2 | . . . . . . . . . . . . . . . . . . . . . . . . . . . 2 . . . . . . . Time 482 | . . . . . . . . . . . . . . . . . . . . . . . . . . . 257 . 157 . . 68 . . Total Part Build Rating 65 | . . . . . . . . . . . . . . . . . . . . . . . . . . . 30 . 27 . . 8 . . Part Studies Acquired 12 | . . . . . . . 3 . . . 1 . . . . . . . . . . . . . . . 5 2 . 1 . . . . Parts Repaired 8 | . . . 1 . . . . 3 . . . . . . . . . . . . . 2 . . . . . 1 . 1 . . . . Time 523 | . . . 136 . . . . 180 . . . . . . . . . . . . . 99 . . . . . 40 . 68 . . . . Parts Recycled . | . . . . . . . . . . . . . . . . . . . . . . . . . . . . . . . . . . . Recycled Matter . | . . . . . . . . . . . . . . . . . . . . . . . . . . . . . . . . . . . Retrieved Matter . | . . . . . . . . . . . . . . . . . . . . . . . . . . . . . . . . . . . Retrieved Components 27 | . 2 . . . . . . . 3 . . . . . . . 10 . . . . 3 . . . . 9 . . . . . . . Parts Scanalyzed 8 | . . . 1 . . . . . . . 1 . . . . . . . . . . . . . . . 4 2 . . . . . . Part Schematics Acquired 7 | . . . . . . . 1 . . . . . . . . . . . . . . . . . . . 4 2 . . . . . . Parts Damaged 1 | . . . 1 . . . . . . . . . . . . . . . . . . . . . . . . . . . . . . . Bothacking | -11 -10 -10 -9 -9 -9 -8 -8 -8 -8 -8 -6 -6 -5 -5 -5 -5 -5 -5 -5 -5 -4 -4 -4 -4 -4 -4 -3 -3 -2 -2 -2 -1 -1 -1 ------------ Run | Yrd Mat Min Mat Min Exi Min Mat Sto Rec Scr Fac Gar Fac Was Fac Gar Fac Upp Upp War Pro Fac Ext Cet Arc Hub Res Tes Res Qua Frg Acc Com Ac0 Used RIF Installer 2 | . . . . . . . . . . . . 1 . . . 1 . . . . . . . . . . . . . . . . . . Watcher Feeds 1 | . . . . . . . . . . . . . . . . 1 . . . . . . . . . . . . . . . . . . Robots Hacked 52 | . . . . . . . . . . . . 2 12 8 11 4 5 . . . . . . . 2 . 2 1 . . 3 . 2 . Non-combat 19 | . . . . . . . . . . . . . 5 1 6 . 4 . . . . . . . 1 . . . . . . . 2 . Combat 33 | . . . . . . . . . . . . 2 7 7 5 4 1 . . . . . . . 1 . 2 1 . . 3 . . . Robot Hacks Applied 61 | . . . . . . . . . . . . 3 15 8 12 4 7 . . . . . . . 2 . 2 1 . . 4 . 3 . parse_system 8 | . . . . . . . . . . . . 1 1 1 . . . . . . . . . . 2 . 2 . . . 1 . . . generate_echo 1 | . . . . . . . . . . . . . . . . . . . . . . . . . . . . . . . . . 1 . find_chute 1 | . . . . . . . . . . . . . 1 . . . . . . . . . . . . . . . . . . . . . deconstruct_machine 1 | . . . . . . . . . . . . . . . . . . . . . . . . . . . . . . . . . 1 . find_fabricator 1 | . . . . . . . . . . . . . . . . . 1 . . . . . . . . . . . . . . . . . drop_inventory 6 | . . . . . . . . . . . . . 2 . 2 . 2 . . . . . . . . . . . . . . . . . find_recycling 2 | . . . . . . . . . . . . . 1 . 1 . . . . . . . . . . . . . . . . . . . ignore_parts 4 | . . . . . . . . . . . . . . . 1 . 3 . . . . . . . . . . . . . . . . . disable_scanner 2 | . . . . . . . . . . . . . . . . . . . . . . . . . . . . . . . 2 . . . ignore_targets 6 | . . . . . . . . . . . . . . 6 . . . . . . . . . . . . . . . . . . . . find_garrison 2 | . . . . . . . . . . . . . 2 . . . . . . . . . . . . . . . . . . . . . link_fov 2 | . . . . . . . . . . . . . . . 1 . . . . . . . . . . . . . . . . . 1 . scatter_targeting 2 | . . . . . . . . . . . . . 1 . 1 . . . . . . . . . . . . . . . . . . . disrupt_area 1 | . . . . . . . . . . . . . . . . . 1 . . . . . . . . . . . . . . . . . spike_heat 1 | . . . . . . . . . . . . . . . . 1 . . . . . . . . . . . . . . . . . . amplify_resonance 3 | . . . . . . . . . . . . . 1 . 1 1 . . . . . . . . . . . . . . . . . . reboot_system 3 | . . . . . . . . . . . . . 3 . . . . . . . . . . . . . . . . . . . . . overwrite_iff 6 | . . . . . . . . . . . . . 1 . 4 1 . . . . . . . . . . . . . . . . . . streamctrl_low 1 | . . . . . . . . . . . . . . . 1 . . . . . . . . . . . . . . . . . . . formatsys_low 3 | . . . . . . . . . . . . . . 1 . . . . . . . . . . . . . 1 . . 1 . . . formatsys_high 5 | . . . . . . . . . . . . 2 2 . . 1 . . . . . . . . . . . . . . . . . . Relay Couplers Released 28 | . . . . . . . . . . . 3 13 . . . 3 . . . . . . . . . 2 . 2 1 1 . 3 . . Ejected 3 | . . . . . . . . . . . 3 . . . . . . . . . . . . . . . . . . . . . . . Machine Destruction 25 | . . . . . . . . . . . . 13 . . . 3 . . . . . . . . . 2 . 2 1 1 . 3 . . Attached 18 | . . . . . . . . . . . . 4 4 2 2 1 2 . . . . . . . . . 1 1 . . . 1 . . Fabnet Peak Effective % . | . . . . . . . . . . . . . . . . . . . . . . . . . . . . . . . . . . . Robots Rewired 12 | . . . . . . . . . . . . . . . . . . . . . . . 10 . . . . 1 . . 1 . . . Allies Hacked 2 | . . . . . . . . . . . . . . . 1 . . . . . . . . . . . . 1 . . . . . . Hacks Repelled . | . . . . . . . . . . . . . . . . . . . . . . . . . . . . . . . . . . . Allies | -11 -10 -10 -9 -9 -9 -8 -8 -8 -8 -8 -6 -6 -5 -5 -5 -5 -5 -5 -5 -5 -4 -4 -4 -4 -4 -4 -3 -3 -2 -2 -2 -1 -1 -1 -------- Run | Yrd Mat Min Mat Min Exi Min Mat Sto Rec Scr Fac Gar Fac Was Fac Gar Fac Upp Upp War Pro Fac Ext Cet Arc Hub Res Tes Res Qua Frg Acc Com Ac0 Total Allies 75 | . 1 . . 2 . . . 10 . 1 3 2 4 1 5 3 . . . . . . 24 5 . 1 4 3 1 1 2 . 2 . Largest Group 11 | . 1 1 1 2 2 . . 10 10 11 4 4 4 3 5 3 1 . . . . . 8 8 7 6 3 2 1 1 1 . 1 1 Highest-Rated Group 668 | . 10 10 10 47 47 . . 173 173 236 150 295 326 258 264 144 64 . . . . . 431 668 663 504 167 156 26 45 64 . 226 193 Highest-Rated Ally 226 | . 10 10 10 31 31 . . 29 29 63 63 119 150 141 141 80 64 . . . . . 159 159 159 96 96 156 26 45 64 . 226 193 Total Orders 62 | . . . . . . . . 5 . 19 . 11 2 . 5 . . . . . . . 1 2 4 2 . . 5 . 5 . 1 . STAY 19 | . . . . . . . . 1 . 2 . 4 1 . . . . . . . . . 1 . 1 1 . . 4 . 3 . 1 . ROAM 9 | . . . . . . . . . . 7 . 1 . . . . . . . . . . . . 1 . . . . . . . . . FOLLOW 15 | . . . . . . . . . . 5 . 3 1 . . . . . . . . . . . 2 1 . . 1 . 2 . . . GUARD 4 | . . . . . . . . . . 2 . . . . . . . . . . . . . 2 . . . . . . . . . . DROP 1 | . . . . . . . . . . . . . . . 1 . . . . . . . . . . . . . . . . . . . EXPLORE 5 | . . . . . . . . 2 . 3 . . . . . . . . . . . . . . . . . . . . . . . . RETURN 9 | . . . . . . . . 2 . . . 3 . . 4 . . . . . . . . . . . . . . . . . . . Ally Attacks 726 | . . . . . . . . . . 92 1 57 72 41 107 18 . . . . . . 148 50 26 38 2 9 . . 13 . 11 41 Total Damage 26663 | . . . . . . . . . . 1272 61 1626 3348 1278 2848 495 . . . . . . 4300 2215 917 1368 47 1659 . . 287 . 870 4072 Kills 155 | . . . . . . . . . . 21 . 10 33 7 22 5 . . . . . . 21 8 4 9 . 10 . . . . 2 3 Allies Corrupted 5 | . . . . . . . . . . . . . 1 . . . . . . . . . . . . 1 . 2 . . 1 . . . Allies Melted 6 | . . . . . . . . . . 4 . . . . . 1 . . . . . . 1 . . . . . . . . . . . Intel | -11 -10 -10 -9 -9 -9 -8 -8 -8 -8 -8 -6 -6 -5 -5 -5 -5 -5 -5 -5 -5 -4 -4 -4 -4 -4 -4 -3 -3 -2 -2 -2 -1 -1 -1 ------- Run | Yrd Mat Min Mat Min Exi Min Mat Sto Rec Scr Fac Gar Fac Was Fac Gar Fac Upp Upp War Pro Fac Ext Cet Arc Hub Res Tes Res Qua Frg Acc Com Ac0 Active Infowar (turns) 17396 | 25 517 1169 260 . . . . . . 2 272 . . . . 120 616 468 1013 165 573 651 1594 440 842 498 687 897 915 567 1811 1403 1891 . Optics 3741 | . . . . . . . . . . . . . . . . . . . 877 165 573 651 708 . . . . . . . 207 . 560 . Sensors 9780 | . . . . . . . . . . . 272 . . . . . . 459 565 165 225 67 1087 143 709 489 686 796 766 354 1131 578 1288 . Structural 894 | . . . . . . . . . . . . . . . . . . . . . . . 596 . . . . . . . 298 . . . Traps 2 | . . . . . . . . . . 2 . . . . . . . . . . . . . . . . . . . . . . . . Seismic 1971 | 25 517 1169 260 . . . . . . . . . . . . . . . . . . . . . . . . . . . . . . . Decoding 1373 | . . . . . . . . . . . . . . . . . . . . . . 650 723 . . . . . . . . . . . T.N.C. 141 | . . . . . . . . . . . . . . . . . . . . . . . . . . . . . . . . 141 . . Machine Analysis 1916 | . . . . . . . . . . . . . . . . . . . . . . . 572 440 842 62 . . . . . . . . Cloaking 908 | . . . . . . . . . . . . . . . . . . 274 136 . . . . . . . . . . 70 428 . . . Jamming 4930 | . . . . . . . . . . . . . . . . 120 616 9 . . . . . . . 38 255 728 688 430 891 546 609 . ECM 84 | . . . . . . . . . . . . . . . . . . . . . . . . . . . 84 . . . . . . . ID Mask 764 | . . . . . . . . . . . . . . . . . . . . . . . . . . . . . . . . 763 1 . Robot Analysis Total 17 | . 2 . . 1 . . . . . 5 . . . . . . . . . . . . . . . 3 2 3 1 . . . . . Derelict Logs Recovered 8 | . . 2 . 1 . . . . . . . . . . . . . 1 2 . 2 . . . . . . . . . . . . . Drone Launches 51 | . . . . . . . . 16 . 8 . 11 1 . 15 . . . . . . . . . . . . . . . . . . . Drone Recoveries 20 | . . . . . . . . 3 . 6 . 4 . . 7 . . . . . . . . . . . . . . . . . . . Decoded 0b10 Intel 58 | . . . . . . . . . . . . . . . . . . . . . . 44 14 . . . . . . . . . . . Items 58 | . . . . . . . . . . . . . . . . . . . . . . 44 14 . . . . . . . . . . . Exploration | -11 -10 -10 -9 -9 -9 -8 -8 -8 -8 -8 -6 -6 -5 -5 -5 -5 -5 -5 -5 -5 -4 -4 -4 -4 -4 -4 -3 -3 -2 -2 -2 -1 -1 -1 ------------- Run | Yrd Mat Min Mat Min Exi Min Mat Sto Rec Scr Fac Gar Fac Was Fac Gar Fac Upp Upp War Pro Fac Ext Cet Arc Hub Res Tes Res Qua Frg Acc Com Ac0 Turns Passed 38388 | 190 517 1169 2514 386 82 90 947 1768 808 6026 414 2229 835 193 579 651 1001 475 1175 165 573 651 1733 440 842 501 692 918 930 567 2263 1473 4015 576 Spaces Moved 28653 | 109 272 576 1239 670 249 245 1070 914 370 3332 200 1009 426 102 265 239 421 310 556 93 326 237 1545 410 406 1069 1600 1694 1111 790 2543 1254 2707 294 Core 142 | 10 . . 1 . . . 1 . . . . . . . . . . . . . . . . . 93 . . . . . 13 2 . 22 Treads 2682 | . . . . . . . . 607 370 1131 . . . . . . . . . . . . . 141 . . . . . . . 109 324 . Legs 4608 | 99 272 576 1006 . . . . . . . . . . . . . . . . . . . . . . . . . . . . . 2383 272 Wheels 6543 | . . . . . . . . . . 2201 200 1009 426 102 265 239 421 310 556 93 326 237 158 . . . . . . . . . . . Hover 5114 | . . . . . . . . . . . . . . . . . . . . . . . . . . . . 917 1111 790 2296 . . . Flight 9564 | . . . 232 670 249 245 1069 307 . . . . . . . . . . . . . . 1387 269 313 1069 1600 777 . . 234 1143 . . Fastest Speed 6 | 50 120 190 32 32 32 32 29 28 160 83 181 144 144 151 151 134 134 140 140 156 172 140 23 23 26 7 7 6 16 16 8 8 101 50 Average Speed 89 | 113 169 190 160 32 32 32 30 117 164 161 185 166 156 151 162 175 147 140 177 169 172 170 39 55 42 21 21 31 31 30 35 26 118 107 Slowest Speed 500 | 120 190 190 500 32 32 32 350 240 165 235 235 181 160 151 179 179 220 140 250 172 172 233 257 104 100 26 73 100 36 31 200 250 400 184 Overloaded Moves 338 | . . . . . . . . . . . . . . . . . . . . . . . . . . 17 40 14 44 23 156 44 . . Propulsion Burnouts . | . . . . . . . . . . . . . . . . . . . . . . . . . . . . . . . . . . . Robots Hopped 82 | . . . . 13 . 3 12 3 . . . . . . . . . . . . . . 10 . . 13 13 4 . . 6 5 . . Potential Cave-ins 4 | . . . . . . . . . . . . . 2 . . . . . . . . . . . . . . . . . 2 . . . Cave-ins Triggered . | . . . . . . . . . . . . . . . . . . . . . . . . . . . . . . . . . . . Teleports 2 | . . . . . . . . . . . . . . . . . . . . . . . . . . . . . . . . . 1 1 Exploration Rate (%) 56 | 5 46 93 88 98 67 51 69 89 95 95 7 69 12 89 27 39 21 51 68 16 62 9 83 67 87 61 35 94 26 70 55 32 70 26 Regions Visited 34 Branch Regions 20 Pre-discovered Areas 13 | . . 2 . . 1 . . . 10 . . . . . . . . . . . . . . . . . . . . . . . . . Known Exits Taken 19 | . . . 1 . . . 1 1 . 1 1 . . . 1 . 1 . 1 . . 1 1 1 1 1 1 1 1 1 1 1 . . Unknown Exits Taken 11 | 1 1 1 . 1 1 1 . . 1 . . . . . . . . 1 . 1 1 . . . . . . . . . . . 1 . Scrap Searched 18 | . . 1 . 3 . . . . . 8 . . . . . . . 2 3 . 1 . . . . . . . . . . . . . Spaces Dug 212 | . . 8 15 . . 6 . 9 . 3 . 23 4 1 . 4 21 4 1 2 . 6 . . . 5 12 4 34 17 26 6 1 . Terrain Destroyed 781 | . . 8 61 . . 24 62 23 . 24 1 41 6 1 60 14 140 8 12 2 . 30 31 . . 5 12 4 58 17 63 13 3 58 Melee 86 | . . . . . . . . . . 3 . 6 . . . 4 . 4 1 2 . 4 . . . 4 9 2 17 11 16 3 . . Projectile 267 | . . . 6 . . . . 6 . . 1 10 6 1 42 1 16 4 11 . . 26 29 . . 1 3 2 23 6 19 7 3 44 AOE 375 | . . 8 55 . . 24 62 17 . 21 . 25 . . 18 8 124 . . . . . . . . . . . . . . . . 13 Terrain Rammed . | . . . . . . . . . . . . . . . . . . . . . . . . . . . . . . . . . . . Walls Destroyed . | . . . . . . . . . . . . . . . . . . . . . . . . . . . . . . . . . . . Machines Disabled . | . . . . . . . . . . . . . . . . . . . . . . . . . . . . . . . . . . . Actions | -11 -10 -10 -9 -9 -9 -8 -8 -8 -8 -8 -6 -6 -5 -5 -5 -5 -5 -5 -5 -5 -4 -4 -4 -4 -4 -4 -3 -3 -2 -2 -2 -1 -1 -1 --------- Run | Yrd Mat Min Mat Min Exi Min Mat Sto Rec Scr Fac Gar Fac Was Fac Gar Fac Upp Upp War Pro Fac Ext Cet Arc Hub Res Tes Res Qua Frg Acc Com Ac0 Total 39182 | 142 304 631 1613 795 250 247 1571 1454 563 3974 231 1456 583 140 354 393 676 337 708 98 337 417 2545 610 1042 1301 1903 2040 1607 1032 3655 2315 3441 417 Wait 6661 | 5 8 28 184 114 2 . 409 361 175 495 4 239 55 15 6 15 108 . 102 . 6 108 590 161 588 196 234 165 360 162 498 865 399 4 Move 28461 | 108 271 575 1238 643 248 238 1046 907 369 3331 199 1008 426 101 265 238 420 309 555 92 325 236 1524 409 405 1043 1574 1685 1110 789 2531 1244 2706 293 Hop 77 | . . . . 13 . 3 11 3 . . . . . . . . . . . . . . 10 . . 12 12 4 . . 5 4 . . Pick Up 430 | 6 10 6 16 1 . . 7 13 3 46 3 28 26 2 7 15 11 . 7 . . 10 28 2 . 3 5 23 10 3 65 16 43 15 Fast Attach 360 | 7 . . 15 . . . 4 19 2 18 1 4 2 3 7 2 10 7 6 2 . 4 36 8 15 10 19 27 15 6 48 24 31 8 Attach 259 | . . . 4 . . . 1 1 . 7 8 20 5 2 7 10 9 3 2 . . 6 24 3 . 1 4 16 14 1 47 29 22 13 Detach 135 | . . . 1 . . . . . 1 9 3 8 1 . 3 4 3 . 2 . . 1 12 3 . 1 1 19 5 1 29 16 8 4 Swap 260 | . 1 2 25 1 . 2 14 16 3 5 1 9 5 1 5 8 14 . 4 . 5 7 10 3 . 3 7 8 11 5 51 10 24 . Drop 634 | 1 1 7 39 2 . . 10 27 6 38 2 22 24 6 10 13 12 7 5 2 1 9 70 10 12 12 21 42 23 9 95 15 77 4 Fire 1104 | 15 13 13 89 21 . 4 69 100 4 17 3 69 37 10 43 36 82 5 22 . . 30 117 8 . 1 3 10 37 8 114 25 24 75 Melee 578 | . . . . . . . . . . 7 7 18 1 . . 36 7 6 2 2 . 6 27 3 22 19 23 32 22 48 132 67 91 . Ram 1 | . . . . . . . . . . . . . . . 1 . . . . . . . . . . . . . . . . . . . Kick 1 | . . . 1 . . . . . . . . . . . . . . . . . . . . . . . . . . . . . . . Crush . | . . . . . . . . . . . . . . . . . . . . . . . . . . . . . . . . . . . Escape Stasis 156 | . . . . . . . . . . . . 31 . . . 16 . . . . . . 51 . . . . 6 . . 37 . 15 . Rewire 55 | . . . . . . . . . . . . . 1 . . . . . . . . . 46 . . . . 3 . . 3 . 1 1 Trap 1 | . . . 1 . . . . . . . . . . . . . . . . . . . . . . . . . . . . . . . Miscellaneous 9 | . . . . . . . . 7 . 1 . . . . . . . . 1 . . . . . . . . . . . . . . . Route ------- -11/Scrapyard -10/Materials (discovered 3 exits: *Mat / *Min x2) -10/Mines (discovered 3 exits: *Mat x2 / [*Sub]) -9/Materials (discovered 5 exits: *Mat x3 / *Min x2) -9/Mines (discovered 4 exits: *Mat x2 / *Exi / [*Zio]) -9/Exiles -8/Mines (discovered 2 exits: *Mat x2) -8/Materials (discovered 5 exits: *Fac x3 / *Sto x2) -8/Storage (discovered 2 exits: *Fac / *Rec) -8/Recycling (discovered 2 exits: *Fac / *Scr) -8/Scraptown (discovered 2 exits: *Fac x2) -6/Factory (discovered 3 exits: Low x2 / Gar) -6/Garrison (discovered 3 exits: *Fac x3) -5/Factory -5/Waste -5/Factory (discovered 3 exits: *Upp x2 / Gar) -5/Garrison (discovered 3 exits: *Fac x3) -5/Factory -5/Upper Caves -5/Upper Caves (discovered 2 exits: *Fac / *War) -5/Warlord -4/Proximity Caves -4/Factory (discovered 3 exits: *Res / *Ext x2) -4/Extension (discovered 2 exits: *Res / *Cet) -4/Cetus (discovered 2 exits: *Res / *Arc) -4/Archives (discovered 3 exits: *Res / *Hub x2) -4/Hub_04(d) (discovered 4 exits: *Res x4) -3/Research (discovered 5 exits: *Res x2 / Arm / *Tes x2) -3/Testing -2/Research (discovered 3 exits: *Acc / *Qua x2) -2/Quarantine (discovered 3 exits: *Acc / *Sec / *Frg) -2/Protoforge -1/Access (discovered 2 exits: Sur / *Com) -1/Command (discovered 3 exits: *Sur x2 / [*Ac0]) -1/Access_0 0b11 Command History --------- Turn | Location | Event 28 | -11/Scrapyard | Discovered new exit (range 15) 191 | -11/Scrapyard | Entered Materials 251 | -10/Materials | Central database locked down 317 | -10/Materials | Build established: Mutant 364 | -10/Materials | Discovered new exit (range 13) 366 | -10/Materials | Discovered new exit (range 10) 634 | -10/Materials | Discovered new exit (range 14) 708 | -10/Materials | Entered Mines 708 | -10/Mines | Accompanied by 1 ally 709 | -10/Mines | Assembled infested the area 716 | -10/Mines | Met a Derelict bent on vengeance 809 | -10/Mines | Discovered new exit (range 10) 1042 | -10/Mines | Discovered new exit (range 8) 1056 | -10/Mines | Found a hidden stash of uninstalled traps 1109 | -10/Mines | Found the Drone Emporium 1126 | -10/Mines | Found Prototype Device 1242 | -10/Mines | Learned location of Zion (-7) 1254 | -10/Mines | Discovered new exit (range 14) 1318 | -10/Mines | Found a damaged Exp. Sensor Array with a note attached 1322 | -10/Mines | Found Prototype Device 1877 | -10/Mines | Entered Materials 1877 | -9/Materials | Accompanied by 1 ally 1877 | -9/Materials | Evolved 2 slots: Propulsion x1, Utility x1 2018 | -9/Materials | Identified exit to Mines 2185 | -9/Materials | Central database locked down 2457 | -9/Materials | Discovered new exit (range 16) 2860 | -9/Materials | Identified Exp. Sensor Array 3317 | -9/Materials | Discovered new exit (range 15) 3736 | -9/Materials | Discovered new exit (range 9) 4097 | -9/Materials | Repaired Broken Exp. Sensor Array 4391 | -9/Materials | Entered Mines 4392 | -9/Mines | A Derelict revealed a hidden shortcut to a safe place 4589 | -9/Mines | Learned Materials stockpile data 4590 | -9/Mines | Discovered new exit (range 7) 4612 | -9/Mines | Deemed a non-threat by the Exiles lab entrance 4612 | -9/Mines | Discovered new exit (range 5) 4657 | -9/Mines | Discovered new exit (range 13) 4690 | -9/Mines | Build established: Sprinter 4777 | -9/Mines | Entered Exiles 4777 | -9/Exiles | Accompanied by 2 allies 4785 | -9/Exiles | Met 8R-AWN 4791 | -9/Exiles | Met EX-HEX 4804 | -9/Exiles | Met EX-DEC 4807 | -9/Exiles | Led the pair of lost Derelicts to a safe place 4818 | -9/Exiles | Met EX-BIN 4854 | -9/Exiles | Discovered new exit (range 10) 4859 | -9/Exiles | Entered Mines 4866 | -8/Mines | Core integrity fell below 50% 4874 | -8/Mines | Discovered new exit (range 9) 4885 | -8/Mines | Discovered new exit (range 7) 4949 | -8/Mines | Entered Materials 4949 | -8/Materials | Evolved 2 slots: Propulsion x1, Utility x1 5004 | -8/Materials | Central database locked down 5004 | -8/Materials | Identified Decoy Drone Bay 5198 | -8/Materials | Identified exit to Storage 5476 | -8/Materials | Discovered new exit (range 7) 5517 | -8/Materials | Found Powered Armor 5599 | -8/Materials | Learned Storage emergency access door positions 5680 | -8/Materials | Identified exit to Factory 5703 | -8/Materials | Learned Factory fabricator intel 5782 | -8/Materials | Learned Factory emergency access door positions 5856 | -8/Materials | Build established: Mutant 5896 | -8/Materials | Entered Storage 5897 | -8/Storage | Identified exit to Recycling 5933 | -8/Storage | Garrison activated, responded to threat 6019 | -8/Storage | Used back door to open Recycling access 6156 | -8/Storage | Discovered exit to Factory (range 41) 6541 | -8/Storage | Repaired Enh. Autogun 6831 | -8/Storage | Garrison activated, responded to threat 6866 | -8/Storage | Build established: Scavenger-Mutant 7224 | -8/Storage | Repaired Enh. Autogun 7254 | -8/Storage | Assisted by bots powering up and referring to "LRC-V3" 7445 | -8/Storage | Repaired Imp. VTOL Module 7556 | -8/Storage | Build established: Commander-Mutant 7664 | -8/Storage | Entered Recycling 7664 | -8/Recycling | Accompanied by 21 allies 7728 | -8/Recycling | Watched by a mysterious "MATRIX" hacker. 7869 | -8/Recycling | Discovered new exit (range 16) 8279 | -8/Recycling | Scanned before Scraplab entrance 8305 | -8/Recycling | Entered Scraplab 8311 | -8/Recycling | Learned 2 Storage zone layouts 8318 | -8/Recycling | Discovered new exit (range 3) 8339 | -8/Recycling | Learned location of 1 exit from Storage 8382 | -8/Recycling | Learned Factory emergency access door positions 8470 | -8/Recycling | Learned location of Lower Caves (-6) 8472 | -8/Recycling | Entered Scraptown 8472 | -8/Scraptown | Accompanied by 21 allies 8472 | -8/Scraptown | System corruption cleaned by C-Scrubber 8585 | -8/Scraptown | Discovered new exit (range 88) 8687 | -8/Scraptown | Visited Awakened 8732 | -8/Scraptown | Visited Cave Peace 8756 | -8/Scraptown | Visited Spacefarers 8770 | -8/Scraptown | Visited Assassins FH 8789 | -8/Scraptown | Visited Red Mages 8819 | -8/Scraptown | Visited TADAMA 8837 | -8/Scraptown | Visited Cyclists 8860 | -8/Scraptown | Visited UFD Registry 8862 | -8/Scraptown | Registered with UFD as "Fluxchassis" 8898 | -8/Scraptown | Visited Junk Cannon Lab 8921 | -8/Scraptown | Visited Curators Association 8973 | -8/Scraptown | Visited Botcube Research 9009 | -8/Scraptown | Visited Derelict Rescue Squad 9190 | -8/Scraptown | Visited DA-N13 Charitable Foundation 9197 | -8/Scraptown | Found DCF Scrap (27 items) 9248 | -8/Scraptown | Visited Modified Component R&D 9331 | -8/Scraptown | Visited Junk Repository 9380 | -8/Scraptown | Visited Analyses Database 9433 | -8/Scraptown | Visited Scrap Suit Storage 10501 | -8/Scraptown | Entered Cyclist Reading Room 11330 | -8/Scraptown | Found Botcube 11665 | -8/Scraptown | Found Scrap Suit 12193 | -8/Scraptown | Botcube activated 12215 | -8/Scraptown | Botcube completed mutation into treaded form, armed with 2 guns. 12452 | -8/Scraptown | Found DRS Beacon 12791 | -8/Scraptown | Found Relay Coupler [Proto] 12796 | -8/Scraptown | Found Relay Coupler [Proto] 12949 | -8/Scraptown | Found Prototype Special Weapon 12949 | -8/Scraptown | Identified Junk Cannon 13113 | -8/Scraptown | Found Scrap Suit 13843 | -8/Scraptown | Met Optimus 13843 | -8/Scraptown | Accepted into 0bPrime 14243 | -8/Scraptown | Civil war broke out across Scraptown 14243 | -8/Scraptown | Attached CPS modules to Optimus. 14253 | -8/Scraptown | Found Potential Leg 14264 | -8/Scraptown | Found Vmp. Humpback 14331 | -8/Scraptown | Found Lrg. Botcube 14334 | -8/Scraptown | Found Lrg. Botcube 14396 | -8/Scraptown | Identified exit to Factory 14487 | -8/Scraptown | Lost 7 allies 14489 | -8/Scraptown | Optimus destroyed in the chaos of civil war 14498 | -8/Scraptown | Entered Factory 14498 | -6/Factory | Accompanied by 1 ally 14498 | -6/Factory | Evolved 4 slots: Utility x3, Weapon x1 14500 | -6/Factory | Loaded intel: 6 fabricator locations 14502 | -6/Factory | Attached CPS modules to *Crab-Prime. 14594 | -6/Factory | Build established: Hauler-Mutant 14719 | -6/Factory | Identified exit to Lower Caves 14859 | -6/Factory | Identified exit to Garrison 14912 | -6/Factory | Entered Garrison 14912 | -6/Garrison | Accompanied by 4 allies 14964 | -6/Garrison | Triggered checkpoint 14984 | -6/Garrison | Triggered checkpoint 15056 | -6/Garrison | Garrison Relay disabled 15144 | -6/Garrison | Triggered checkpoint 15144 | -6/Garrison | Triggered checkpoint 15163 | -6/Garrison | Discovered new exit (range 39) 15185 | -6/Garrison | Destroyed 8 combat bots 15264 | -6/Garrison | Discovered new exit (range 22) 15264 | -6/Garrison | Discovered new exit (range 35) 15264 | -6/Garrison | Discovered new exit (range 50) 15388 | -6/Garrison | Attached CPS modules to P-60 Hacker. 15399 | -6/Garrison | Found Relay Coupler [Proto] 15404 | -6/Garrison | Found Relay Coupler [Proto] 15408 | -6/Garrison | Found Relay Coupler [Proto] 15416 | -6/Garrison | Found Relay Coupler [Proto] 15566 | -6/Garrison | Triggered checkpoint 15652 | -6/Garrison | Garrison Relay disabled 15848 | -6/Garrison | Triggered checkpoint 15898 | -6/Garrison | Triggered checkpoint 16100 | -6/Garrison | Triggered checkpoint 16178 | -6/Garrison | Installed Relay Interface Framework 16194 | -6/Garrison | Garrison Relay disabled 16583 | -6/Garrison | Spotted Executioner 16583 | -6/Garrison | Spotted Executioner 16603 | -6/Garrison | Assimilated Executioner with formatsys_high 16609 | -6/Garrison | Assimilated Executioner with formatsys_high 16615 | -6/Garrison | Attached CPS modules to Executioner. 16617 | -6/Garrison | Attached CPS modules to Executioner. 16953 | -6/Garrison | Build established: Bothacker-Gunner 17141 | -6/Garrison | Entered Factory 17141 | -5/Factory | Accompanied by 3 allies 17141 | -5/Factory | Evolved 2 slots: Utility x2 17191 | -5/Factory | Discovered new exit (range 11) 17284 | -5/Factory | Found Prototype Launcher 17339 | -5/Factory | Identified Smartbomb Launcher 17382 | -5/Factory | Found Adv. Kinecellerator 17445 | -5/Factory | Lrg. Botcube activated 17477 | -5/Factory | Lrg. Botcube completed mutation into legged form, armed with 4 guns. 17482 | -5/Factory | Attached CPS modules to *Crabxecutioner. 17613 | -5/Factory | Found Adv. Kinecellerator 17622 | -5/Factory | Found Exp. Core Analyzer 17741 | -5/Factory | First assault squad dispatched 17976 | -5/Factory | Sucked down chute 17976 | -5/Factory | Entered Waste 17991 | -5/Waste | EMP discharged 17991 | -5/Waste | Spotted C-40 Crusher 17992 | -5/Waste | Spotted C-40 Crusher 18011 | -5/Waste | 2 allies followed down the chute 18015 | -5/Waste | Spotted C-40 Crusher 18021 | -5/Waste | Found Damper Plating 18029 | -5/Waste | Spotted C-40 Crusher 18030 | -5/Waste | Allies destroyed C-40 Crusher 18049 | -5/Waste | Spotted C-40 Crusher 18062 | -5/Waste | Spotted C-40 Crusher 18091 | -5/Waste | EMP discharged 18091 | -5/Waste | System corruption reached 10% 18102 | -5/Waste | Allies destroyed C-40 Crusher 18123 | -5/Waste | Discovered new exit (range 9) 18169 | -5/Waste | Entered Factory 18169 | -5/Factory | Accompanied by 3 allies 18258 | -5/Factory | Spotted B-75 Beast 18281 | -5/Factory | Destroyed B-75 Beast 18388 | -5/Factory | Identified exit to Upper Caves 18469 | -5/Factory | First assault squad dispatched 18472 | -5/Factory | Garrison activated, responded to threat 18497 | -5/Factory | Lost 3 allies 18641 | -5/Factory | Found Botcube 18748 | -5/Factory | Identified exit to Garrison 18748 | -5/Factory | Entered Garrison 18748 | -5/Garrison | Accompanied by 1 ally 18787 | -5/Garrison | Expanded RIF knowledge: Watcher Feeds 18875 | -5/Garrison | Garrison Relay disabled 18960 | -5/Garrison | Triggered checkpoint 18965 | -5/Garrison | Discovered new exit (range 63) 18965 | -5/Garrison | Discovered new exit (range 53) 18965 | -5/Garrison | Discovered new exit (range 49) 19007 | -5/Garrison | Botcube activated 19021 | -5/Garrison | Botcube completed mutation into legged form, armed with 2 guns. 19023 | -5/Garrison | Attached CPS modules to *Backup Crab. 19024 | -5/Garrison | Spotted B-75 Beast 19034 | -5/Garrison | Destroyed B-75 Beast 19072 | -5/Garrison | Triggered checkpoint 19113 | -5/Garrison | Found Botcube 19115 | -5/Garrison | Attached CPS modules to C-45 Heavy ARC. 19200 | -5/Garrison | Triggered checkpoint 19399 | -5/Garrison | Entered Factory 19399 | -5/Factory | Accompanied by 1 ally 19418 | -5/Factory | Build established: Bothacker-Mutant 19699 | -5/Factory | First assault squad dispatched 19749 | -5/Factory | Build established: Bothacker-Gunner 20129 | -5/Factory | Core integrity fell below 50% 20170 | -5/Factory | Lost 5 parts (1p1n3w) 20260 | -5/Factory | Discovered exit to Upper Caves (range 25) 20400 | -5/Factory | Entered Upper Caves 20492 | -5/Upper Caves | Found Alien Artifact 20492 | -5/Upper Caves | Identified Core Expander 20492 | -5/Upper Caves | Installed Core Expander, added new Propulsion slot 20702 | -5/Upper Caves | Build established: Hauler-Mutant 20819 | -5/Upper Caves | Learned Factory trap positions 20843 | -5/Upper Caves | Discovered new exit (range 9) 20875 | -5/Upper Caves | Entered another Upper Caves area 20920 | -5/Upper Caves | Activated DRS Beacon 21009 | -5/Upper Caves | Spotted B-75 Beast 21033 | -5/Upper Caves | Identified exit to Warlord 21080 | -5/Upper Caves | Discovered new exit (range 8) 21346 | -5/Upper Caves | Build established: Scavenger-Mutant 21505 | -5/Upper Caves | Lost 3 allies 21737 | -5/Upper Caves | Learned Factory non-interactive machine intel 21813 | -5/Upper Caves | Found Alien Artifact 22050 | -5/Upper Caves | Entered Warlord 22107 | -5/Warlord | System corruption cleaned by Quarantine Array 22117 | -5/Warlord | Build established: Hauler-Mutant 22143 | -5/Warlord | Discovered new exit (range 15) 22215 | -5/Warlord | Entered Proximity Caves 22610 | -4/Proximity Caves | Learned Research emergency access door positions 22611 | -4/Proximity Caves | Build established: Scavenger-Gunner 22740 | -4/Proximity Caves | Discovered new exit (range 16) 22752 | -4/Proximity Caves | Learned location of 1 exit from Upper Caves 22788 | -4/Proximity Caves | Entered Factory 22788 | -4/Factory | Evolved 2 slots: Power x1, Utility x1 22789 | -4/Factory | Identified exit to Extension 22790 | -4/Factory | Loaded intel: 84 trap records 22791 | -4/Factory | Loaded intel: 225 non-interactive machine locations 22821 | -4/Factory | Identified exit to DSF 23068 | -4/Factory | Found Quantum Capacitor 23098 | -4/Factory | Found Prototype Processor 23104 | -4/Factory | Declared boring by mysterious "MATRIX" hacker. 23170 | -4/Factory | Repaired Centrium Wheel 23240 | -4/Factory | Repaired Broken Helical Railgun 23262 | -4/Factory | Discovered new exit (range 17) 23317 | -4/Factory | Unchained authorized (DW-4LL) 23439 | -4/Factory | Entered Extension 23612 | -4/Extension | Unchained authorized (DW-4LL) 23615 | -4/Extension | Rescued a captive Derelict 23615 | -4/Extension | Rescued a captive Derelict 23662 | -4/Extension | Rescued a captive Derelict 23682 | -4/Extension | Attached CPS modules to R-10 Processor. 23704 | -4/Extension | Rescued a captive Derelict 23736 | -4/Extension | Lrg. Botcube activated 23752 | -4/Extension | Lrg. Botcube completed mutation into legged form, armed with 1 gun, 2 cannons. 23775 | -4/Extension | Identified Exp. Signal Interpreter 23798 | -4/Extension | Rescued a captive Derelict 23798 | -4/Extension | Rescued a captive Derelict 23859 | -4/Extension | Rescued a captive Derelict 23860 | -4/Extension | Rescued a captive Derelict 23861 | -4/Extension | Rescued a captive Derelict 23874 | -4/Extension | Lost 3 allies 24014 | -4/Extension | Disrupted transfer network 24041 | -4/Extension | Attached CPS modules to DW-4LL. 24117 | -4/Extension | Lost 5 allies 24154 | -4/Extension | Identified Dimensional Node Initializer 24154 | -4/Extension | Initialized slip node 24161 | -4/Extension | Core integrity fell below 50% 24163 | -4/Extension | System corruption reached 10% 24164 | -4/Extension | Destroyed DW-4LL 24167 | -4/Extension | Found Prototype Ballistic Gun 24168 | -4/Extension | Found Prototype Protection 24168 | -4/Extension | Identified DW-4LL's Blast Wall 24172 | -4/Extension | Identified DW-4LL's Slamshotty 24214 | -4/Extension | Found Prototype Treads 24220 | -4/Extension | Lost 7 parts (1p2n3u1w) 24225 | -4/Extension | Found Prototype Processor 24225 | -4/Extension | Identified Exp. Armor Integrity Analyzer 24416 | -4/Extension | Murdered *Anti Dwaller 24416 | -4/Extension | Destroyed *Anti Dwaller 24420 | -4/Extension | Found Lrg. Botcube 24514 | -4/Extension | Botcube activated 24534 | -4/Extension | Botcube completed mutation into treaded form, armed with 1 gun. 24804 | -4/Extension | Spotted B-86 Titan 24832 | -4/Extension | Allies destroyed B-86 Titan 24836 | -4/Extension | Spotted B-86 Titan 24898 | -4/Extension | Lost 3 allies 24899 | -4/Extension | Build established: Scavenger-Scout 24913 | -4/Extension | Rescued A7 25074 | -4/Extension | Rescued a captive Derelict 25080 | -4/Extension | Rescued a captive Derelict 25097 | -4/Extension | Discovered new exit (range 10) 25098 | -4/Extension | Discovered new exit (range 6) 25099 | -4/Extension | Identified exit to Research 25101 | -4/Extension | Identified exit to Cetus 25172 | -4/Extension | Entered Cetus 25172 | -4/Cetus | Accompanied by 8 allies (A7) 25176 | -4/Cetus | Spotted Cetus Guard 25176 | -4/Cetus | Spotted Cetus Guard 25177 | -4/Cetus | Acquired a Cetus Manufacturing Module code from A7 25184 | -4/Cetus | Spotted Cetus Guard 25185 | -4/Cetus | Spotted Cetus Guard 25195 | -4/Cetus | Allies destroyed Cetus Guard 25202 | -4/Cetus | Core integrity fell below 20% 25216 | -4/Cetus | Allies destroyed Cetus Guard 25228 | -4/Cetus | Allies destroyed Cetus Guard 25247 | -4/Cetus | Lost 6 allies 25321 | -4/Cetus | Identified DW-4LL's Griptreads 25342 | -4/Cetus | Started Cetus Manufacturing Module 25367 | -4/Cetus | Manufactured an Enhanced Grunt 25392 | -4/Cetus | Manufactured an Enhanced Grunt 25395 | -4/Cetus | Escorted A7 to Cetus Mainframe 25417 | -4/Cetus | Manufactured an Enhanced Grunt 25442 | -4/Cetus | Manufactured an Enhanced Grunt 25456 | -4/Cetus | Discovered new exit (range 15) 25462 | -4/Cetus | Identified exit to Archives 25467 | -4/Cetus | Manufactured an Enhanced Grunt 25521 | -4/Cetus | Spotted Cetus Guard 25521 | -4/Cetus | Spotted Cetus Guard 25537 | -4/Cetus | Allies destroyed Cetus Guard 25541 | -4/Cetus | Allies destroyed Cetus Guard 25548 | -4/Cetus | Spotted Cetus Guard 25557 | -4/Cetus | Allies destroyed Cetus Guard 25563 | -4/Cetus | Discovered exit to Research (range 15) 25565 | -4/Cetus | Met Revision 17 25612 | -4/Cetus | Entered Archives 25612 | -4/Archives | Accompanied by 7 allies (A7) 25617 | -4/Archives | Received a hacking code to weaken MAIN.C 25661 | -4/Archives | Discovered exit to Research (range 15) 25673 | -4/Archives | Discovered new exit (range 14) 25837 | -4/Archives | Discovered new exit (range 13) 26432 | -4/Archives | Identified exit to Hub_04(d) 26454 | -4/Archives | Entered Hub_04(d) 26454 | -4/Hub_04(d) | Accompanied by 6 allies 26454 | -4/Hub_04(d) | Discovered exit to Research (range 11) 26670 | -4/Hub_04(d) | Central database locked down 26813 | -4/Hub_04(d) | Build established: Wizard-Sprinter 26864 | -4/Hub_04(d) | Network Hub disabled 26867 | -4/Hub_04(d) | Spotted Lightning 26867 | -4/Hub_04(d) | Spotted Lightning 26868 | -4/Hub_04(d) | Network Hub disabled 26872 | -4/Hub_04(d) | Network Hub disabled 26889 | -4/Hub_04(d) | Network Hub disabled 26955 | -4/Hub_04(d) | Entered Research 26955 | -3/Research | Accompanied by 1 ally 26955 | -3/Research | Evolved 2 slots: Utility x2 26982 | -3/Research | Identified exit to Armory 26982 | -3/Research | Identified exit to Testing 27142 | -3/Research | Spotted B-86 Titan 27155 | -3/Research | Revision forces began assault on 0b10 27286 | -3/Research | Discovered new exit (range 3) 27286 | -3/Research | Identified exit to Research 27297 | -3/Research | Fabricated CPS Tube (x1) 27302 | -3/Research | Met up with Revision 17++ 27356 | -3/Research | Fabricated Femtoactuators (x1) 27420 | -3/Research | Central database locked down 27514 | -3/Research | Fabricated Cld. Q-thruster (x1) 27522 | -3/Research | Fabricated Zero-point Reactor (x1) 27603 | -3/Research | Discovered exit to Research (range 15) 27605 | -3/Research | Build established: Hacker-Sprinter 27613 | -3/Research | Attached CPS modules to Revision 17++. 27621 | -3/Research | Murdered Revision 17++ 27647 | -3/Research | Entered Testing 27647 | -3/Testing | Accompanied by 1 ally 27712 | -3/Testing | Found Prototype Energy Cannon 27712 | -3/Testing | Identified Disintegrator 27716 | -3/Testing | Unchained authorized (BL-1NK) 27767 | -3/Testing | Found Prototype Energy Cannon 27769 | -3/Testing | Identified Potential Cannon 27809 | -3/Testing | Found Potential Cannon 27900 | -3/Testing | Lrg. Botcube activated 27924 | -3/Testing | Lrg. Botcube completed mutation into treaded form, armed with 2 cannons. 27928 | -3/Testing | Attached CPS modules to BL-1NK. 27930 | -3/Testing | Attached CPS modules to *Potcrab. 27963 | -3/Testing | Allies destroyed BL-1NK 27965 | -3/Testing | Found Prototype Device 27965 | -3/Testing | Identified Blink Core 27974 | -3/Testing | Found Prototype Protection 27974 | -3/Testing | Identified Lgt. Regenerative Plating 27979 | -3/Testing | Lost 5 parts (2n2u1w) 28040 | -3/Testing | Found Prototype Energy Cannon 28040 | -3/Testing | Identified Null Cannon 28113 | -3/Testing | Found Lrg. Botcube 28244 | -3/Testing | Central database locked down 28272 | -3/Testing | Repaired Exp. Propulsion Shielding 28311 | -3/Testing | Build established: Scavenger-Mutant 28365 | -3/Testing | Found Prototype Ballistic Cannon 28365 | -3/Testing | Identified Perforator 28472 | -3/Testing | Found Med. Regenerative Plating 28477 | -3/Testing | Found Prototype Protection 28498 | -3/Testing | Rewired PY-8FO68V6ROY 28565 | -3/Testing | Entered Research 28565 | -2/Research | Evolved 2 slots: Propulsion x2 28581 | -2/Research | Identified exit to Quarantine 28640 | -2/Research | Fabricated Cmb. Linear Gravjet (x2) 28936 | -2/Research | Build established: Scavenger-Sprinter 29000 | -2/Research | Discovered new exit (range 16) 29318 | -2/Research | Fabricated Exp. Transmission Jammer (x1) 29441 | -2/Research | Spotted B-90 Cyclops 29491 | -2/Research | Spotted B-90 Cyclops 29495 | -2/Research | Entered Quarantine 29510 | -2/Quarantine | Found Alien Slashing Weapon 29510 | -2/Quarantine | Identified Sigix Broadsword 29520 | -2/Quarantine | Found Alien Reactor 29618 | -2/Quarantine | Identified SHELL Armor 29619 | -2/Quarantine | Identified Matter Drive 29784 | -2/Quarantine | Repaired Broken Exp. Sensor Array 29800 | -2/Quarantine | Found Alien Artifact 29922 | -2/Quarantine | Discovered new exit (range 19) 30039 | -2/Quarantine | Spotted Fortress 30058 | -2/Quarantine | Discovered new exit (range 6) 30058 | -2/Quarantine | Discovered new exit (range 6) 30059 | -2/Quarantine | Identified exit to Protoforge 30060 | -2/Quarantine | Identified exit to Section 7 30062 | -2/Quarantine | Entered Protoforge 30065 | -2/Protoforge | Identified exit to Access 30096 | -2/Protoforge | Identified Subatomic Replicator 30105 | -2/Protoforge | Spotted Hotshot 30113 | -2/Protoforge | Spotted Hotshot 30117 | -2/Protoforge | Spotted Hotshot 30118 | -2/Protoforge | Spotted Hotshot 30122 | -2/Protoforge | Spotted Hotshot 30134 | -2/Protoforge | Spotted Hotshot 30140 | -2/Protoforge | Spotted Hotshot 30142 | -2/Protoforge | Spotted Hotshot 30144 | -2/Protoforge | Spotted Hotshot 30146 | -2/Protoforge | Spotted Hotshot 30157 | -2/Protoforge | Spotted Hotshot 30179 | -2/Protoforge | Spotted Hotshot 30411 | -2/Protoforge | Spotted Hotshot 30414 | -2/Protoforge | Spotted Hotshot 30425 | -2/Protoforge | Spotted Hotshot 30473 | -2/Protoforge | Spotted B-90 Cyclops 30478 | -2/Protoforge | Spotted Decapitator 30479 | -2/Protoforge | Spotted Decapitator 30479 | -2/Protoforge | Spotted Decapitator 30480 | -2/Protoforge | Spotted Decapitator 30517 | -2/Protoforge | Spotted Hotshot 30562 | -2/Protoforge | Spotted Hotshot 30563 | -2/Protoforge | Spotted Hotshot 30585 | -2/Protoforge | Spotted Hotshot 30608 | -2/Protoforge | Spotted Hotshot 30617 | -2/Protoforge | Destroyed Hotshot 30651 | -2/Protoforge | Superfortress began startup sequence 30673 | -2/Protoforge | Destroyed Hotshot 30712 | -2/Protoforge | Destroyed Hotshot 30752 | -2/Protoforge | Found Prototype Slashing Weapon 30834 | -2/Protoforge | Found Prototype Device 30834 | -2/Protoforge | Identified Crosscalibrator 30843 | -2/Protoforge | Identified Exp. Terror Saw 30846 | -2/Protoforge | Spotted Immortal 30846 | -2/Protoforge | Spotted Immortal 30912 | -2/Protoforge | Destroyed Immortal 30933 | -2/Protoforge | Destroyed Immortal 30938 | -2/Protoforge | Found Prototype Protection 30938 | -2/Protoforge | Identified Cep. Core Shell 30947 | -2/Protoforge | Found Corrupted Exp. Jetlance 30949 | -2/Protoforge | Found Cep. Core Shell 30957 | -2/Protoforge | Spotted Decapitator 30957 | -2/Protoforge | Spotted Decapitator 30957 | -2/Protoforge | Spotted Decapitator 30959 | -2/Protoforge | Destroyed Decapitator 30961 | -2/Protoforge | Destroyed Decapitator 30970 | -2/Protoforge | Destroyed Decapitator 30997 | -2/Protoforge | Found Prototype Flight Unit 30997 | -2/Protoforge | Identified Cep. Fieldthrust Drive 31003 | -2/Protoforge | Found Cep. Combat Aerolev Unit 31028 | -2/Protoforge | Found Exp. Terror Saw 31086 | -2/Protoforge | Found Prototype Device 31086 | -2/Protoforge | Identified Exp. Thermal Defense Suite 31089 | -2/Protoforge | Found Prototype Device 31089 | -2/Protoforge | Identified Exp. Weapon Cycler 31136 | -2/Protoforge | Found Faulty Cep. EMP Blanket Launcher 31138 | -2/Protoforge | Found Faulty Cep. EMP Blanket Launcher 31210 | -2/Protoforge | Destroyed V318-y 31238 | -2/Protoforge | Found Faulty Cep. Arcsight Missile Launcher 31250 | -2/Protoforge | Found Cep. Chromion Battery 31311 | -2/Protoforge | Forge Plexus network access discovered 31364 | -2/Protoforge | Found Cep. Antigrav Storage Unit 31367 | -2/Protoforge | Found Cep. Matter Streamer 31418 | -2/Protoforge | Spotted Decapitator 31497 | -2/Protoforge | Found Cep. Zero-point Core 31509 | -2/Protoforge | Found Cep. Zero-point Core 31522 | -2/Protoforge | Found Cep. Zero-point Core 31562 | -2/Protoforge | First assault squad dispatched 31603 | -2/Protoforge | Additional patrols dispatched to research labs 31607 | -2/Protoforge | Found Cep. Nanofilaments [Tensile] 31607 | -2/Protoforge | Installed Cep. Nanofilaments [Tensile], 3 resistances modified: KI +20%, TH -10%, I +20% 31623 | -2/Protoforge | Found Transdimensional Reconstructor 31704 | -2/Protoforge | Spotted AP7-3 31751 | -2/Protoforge | Spotted Immortal 31770 | -2/Protoforge | Destroyed Immortal 31775 | -2/Protoforge | Spotted V222-o 31786 | -2/Protoforge | Spotted V559-e 31787 | -2/Protoforge | Found Cep. Melee Reflex Suite 31791 | -2/Protoforge | Found Corrupted Cep. Antimissile System 31792 | -2/Protoforge | System corruption reached 10% 31798 | -2/Protoforge | Destroyed V559-e 31803 | -2/Protoforge | Found Cep. Combat Aerolev Unit 31804 | -2/Protoforge | Found Cep. Combat Aerolev Unit 31809 | -2/Protoforge | Found Femtoactuators 31815 | -2/Protoforge | Found Exp. Force Booster 31844 | -2/Protoforge | Found Cep. Weapon Articulator 31849 | -2/Protoforge | Spotted V535-x 31864 | -2/Protoforge | Destroyed V222-o 31868 | -2/Protoforge | Destroyed V535-x 31899 | -2/Protoforge | Found Cep. Combat Aerolev Unit 31910 | -2/Protoforge | Found Faulty Exp. Force Booster 31912 | -2/Protoforge | Found Faulty Mni. Quantum Capacitor 31931 | -2/Protoforge | Spotted Decapitator 31960 | -2/Protoforge | Spotted Decapitator 31961 | -2/Protoforge | Spotted Decapitator 31961 | -2/Protoforge | Spotted Decapitator 31961 | -2/Protoforge | Spotted V648-t 31973 | -2/Protoforge | Found Faulty Cep. Plasma Driver 31982 | -2/Protoforge | Found Cep. Deflector Sword 31988 | -2/Protoforge | Found Faulty Cep. Plasma Driver 31990 | -2/Protoforge | Found Cep. Plasma Driver 31993 | -2/Protoforge | Found Cep. Disintegration Ray 31997 | -2/Protoforge | Found Exp. Jetlance 32001 | -2/Protoforge | Found Faulty Cep. XC Strikerail 32005 | -2/Protoforge | Found Faulty Cep. XC Strikerail 32009 | -2/Protoforge | Found Faulty Cep. XC Strikerail 32016 | -2/Protoforge | Found Faulty Cep. XC Strikerail 32022 | -2/Protoforge | Destroyed Decapitator 32027 | -2/Protoforge | Destroyed Decapitator 32030 | -2/Protoforge | Destroyed Decapitator 32067 | -2/Protoforge | Found Cep. Network Penetrator 32102 | -2/Protoforge | Found Cep. Fieldthrust Drive 32104 | -2/Protoforge | Found Faulty Cep. Fieldthrust Drive 32325 | -2/Protoforge | Entered Access 32325 | -1/Access | Evolved 2 slots: Propulsion x1, Utility x1 32355 | -1/Access | Found Unknown Protection 32355 | -1/Access | Identified Hvy. Insulated Plating 32398 | -1/Access | Fabricated Exp. Sensor Array? 32484 | -1/Access | Found Unknown Launcher 32485 | -1/Access | Identified Gamma Bomb Array 32489 | -1/Access | Unchained authorized (6S-H0T) 32507 | -1/Access | Found Exp. Signal Interpreter 32575 | -1/Access | First assault squad dispatched 32675 | -1/Access | Destroyed 9 combat bots 32689 | -1/Access | Identified exit to Surface 32689 | -1/Access | Identified exit to Command 32823 | -1/Access | Spotted B-99 Colossus 32823 | -1/Access | Spotted B-99 Colossus 32873 | -1/Access | Destroyed B-99 Colossus 32886 | -1/Access | Destroyed B-99 Colossus 33023 | -1/Access | Destroyed 6S-H0T 33035 | -1/Access | Found ID Mask 33035 | -1/Access | ID Mask engaged 33041 | -1/Access | Lost 3 parts (1n2u) 33228 | -1/Access | Unchained authorized (GL-D0S) 33332 | -1/Access | Build established: Scavenger-Mutant 33798 | -1/Access | Entered Command 34139 | -1/Command | Spotted M Guard 34139 | -1/Command | Spotted M Guard 34140 | -1/Command | Spotted Combat Programmer 34141 | -1/Command | Destroyed Combat Programmer 34141 | -1/Command | Spotted Combat Programmer 34150 | -1/Command | System corruption reached 10% 34151 | -1/Command | Destroyed Combat Programmer 34153 | -1/Command | Destroyed M Guard 34155 | -1/Command | Destroyed M Guard 34155 | -1/Command | All MAIN.C guards destroyed 34208 | -1/Command | Found Zero-point Reactor 34218 | -1/Command | Found Prototype Protection 34271 | -1/Command | Identified Hvy. Regenerative Plating 34293 | -1/Command | Used Subatomic Replicator to replicate SHELL Armor 34296 | -1/Command | Lrg. Botcube activated 34320 | -1/Command | Lrg. Botcube completed mutation into treaded form, armed with 2 guns, 1 cannon. 34327 | -1/Command | Met MAIN.C 34365 | -1/Command | Destroyed MAIN.C Shell 34367 | -1/Command | MAIN.C activated Command garrisons 34369 | -1/Command | 0b10 Conduit disabled 34390 | -1/Command | Destroyed MAIN.C 34393 | -1/Command | Found Zero-point Reactor 34403 | -1/Command | Discovered exit to Surface (range 37) 34403 | -1/Command | Discovered exit to Surface (range 85) 34403 | -1/Command | Extracted map data and part IDs from MAIN.C's data core 34408 | -1/Command | Found Exp. Targeting Computer 34420 | -1/Command | Lost 8 parts (2p1n3u2w) 34484 | -1/Command | Spotted B-99 Colossus 34493 | -1/Command | Destroyed B-99 Colossus 34537 | -1/Command | Found Vortex Chain Reactor 34560 | -1/Command | Found Hyp. Multirail 34564 | -1/Command | Found Vortex Chain Reactor 34568 | -1/Command | Found Hvy. Regenerative Plating 34571 | -1/Command | Found Spectral Analyzer 34574 | -1/Command | Found Exp. System Purifier 34695 | -1/Command | Found Adv. Kinecellerator 34782 | -1/Command | Build established: Scavenger-Tank 34794 | -1/Command | Found Exp. Core Analyzer 35097 | -1/Command | Build established: Scavenger-Gunner 35443 | -1/Command | Build established: Scavenger-Mutant 35557 | -1/Command | Found Exp. Core Analyzer 35728 | -1/Command | Found Exp. Core Analyzer 36326 | -1/Command | Murdered *Crabmoth 36326 | -1/Command | Destroyed *Crabmoth 36334 | -1/Command | Found Lrg. Botcube 37736 | -1/Command | Found Multirail 37753 | -1/Command | Warped through subspace to slip node 37753 | -1/Command | Discovered new exit (range 4) 37779 | -1/Command | Lrg. Botcube activated 37807 | -1/Command | Lrg. Botcube completed mutation into treaded form, armed with 1 gun, 3 cannons. 37813 | -1/Command | Entered Access_0 37813 | -1/Access_0 | Accompanied by 1 ally 37817 | -1/Access_0 | Met Architect 37825 | -1/Access_0 | Architect warped through subspace 37830 | -1/Access_0 | Destroyed A8 37863 | -1/Access_0 | Architect warped through subspace 37876 | -1/Access_0 | Found Exp. Thermal Shield 37899 | -1/Access_0 | Architect warped through subspace 37933 | -1/Access_0 | Architect warped through subspace 37957 | -1/Access_0 | Architect warped through subspace 37970 | -1/Access_0 | Found Exp. Thermal Shield 37988 | -1/Access_0 | Architect warped through subspace 38018 | -1/Access_0 | Architect warped through subspace 38052 | -1/Access_0 | Subspace Access Node disabled 38071 | -1/Access_0 | Architect warped through subspace 38098 | -1/Access_0 | Architect warped through subspace 38129 | -1/Access_0 | A6 warped into view 38136 | -1/Access_0 | Destroyed A6 38141 | -1/Access_0 | Core integrity fell below 50% 38164 | -1/Access_0 | Architect warped through subspace 38205 | -1/Access_0 | Found Corrupted Exp. Weapon Cycler 38254 | -1/Access_0 | Lost 10 parts (2p4n3u1w) 38286 | -1/Access_0 | Core integrity fell below 20% 38383 | -1/Access_0 | Released all parts (12) 38384 | -1/Access_0 | Found Hpw. Transdimensional Reconstructor 38384 | -1/Access_0 | Warped through subspace to slip node 38384 | -1/Access_0 | Discovered exit to Surface (range 8) 38389 | *** | Establishing 0b11! Last Messages --------------- 38383_ Released Hds. Centrium Leg. 38383_ Released Graphene Brace. 38383_ Released Exp. Targeting Computer. 38383_ Released Exp. Core Analyzer. 38383_ Released Centrium Leg. 38383_ Released Adv. Targeting Computer. 38383_ Released Enh. Flexi-carbon Leg. 38383_ Released Exp. Biometal Leg. 38383_ Released Exp. Energy Well. 38383_ Released Hyp. Linear Accelerator. 38383_ Released Cep. EMP Blanket Launcher. 38384_ Acquired Hpw. Transdimensional Reconstructor. 38384_ Warped through subspace, drawn to slip node. 38384_ EXIT=FOUND: SURFACE 38385_ A0_RES: I have more important things to do than play hide-and-seek. Deal with this piece of junk if it returns. 38388_ System corrupted: Component data lost. Map ----- +----------------------------------------------------+ | | | | | | | | | | | | | | | | | | | | | | | | | | | | | | | | | ?????????????????????????????????????????????????? | | ?????????????????????????????????????????????????? | | ?????????????????????????????????????????????????? | | ?????????????????????????????????????????????????? | | ?????????????????????????????????????????????????? | | ?????????????????????????????????????????????????? | | ????????????????????????###??????????????????????? | | ???????????????????????## ##?????????????????????? | | ???????????????????????# #?????????????????????? | | ???????????????????????# @ #?????????????????????? | | ??????????????????????## #?????????????????????? | | ??????????????????????# #?????????????????????? | | ??????????????????????# ##?????????????????????? | | ??????????????????????## #?????????????????????? | | ??????????????????????# #?????????????????????? | | ??????????????????????# ##?????????????????????? | | ??????????????????????# < #?????????????????????? | | ??????????????????????# ##?????????????????????? | | ??????????????????????## #??????????????????????? | | ???????????????????????####??????????????????????? | | ?????????????????????????????????????????????????? | | ?????????????????????????????????????????????????? | | ?????????????????????????????????????????????????? | | ?????????????????????????????????????????????????? | | ?????????????????????????????????????????????????? | | ?????????????????????????????????????????????????? | | ?????????????????????????????????????????????????? | | ?????????????????????????????????????????????????? | | ?????????????????????????????????????????????????? | | ?????????????????????????????????????????????????? | | ?????????????????????????????????????????????????? | | ?????????????????????????????????????????????????? | | ?????????????????????????????????????????????????? | | ?????????????????????????????????????????????????? | +----------------------------------------------------+ Best States ------------- Heat Dissipation 145 Energy Generation 61 Energy Capacity 2050 Matter Stores 300 Matter Capacity 300 Sight Range 24 Robot Scan Range 20 Terrain Scan Density 10 ECM Strength 1 Jamming Range 22 Cloak Strength 4 Additional Mass Support 25 Corruption Containment 12 Armor Coverage 2400 Resistance: KI 20 Resistance: TH 15 Resistance: EX 75 Resistance: I 20 Core Shielding 90 Propulsion Shielding 90 Utility Shielding 66 Weapon Shielding 90 Point Defense Rating 480 Projectile Deflection 15 Weapon Cycling 30 Melee Speed Boost 50 Phase Shifting 15 Evasion (%) 74 Targeting Accuracy 30 Melee Accuracy 16 Core Analysis 12 Armor Integrity Analysis 50 Recoil Reduction 8 Matter Filtering 50 Particle Charging 25 Kinecelleration 50 Force Boost 50 Salvage Targeting 1 Offensive Hacking 62 Defensive Hacking 24 Relay Coupler Types 4 Relay Coupler Value 56 Authchip Count 3 Item Schematics ----------------- Hcp. Storage Unit | -9/Materials | Hacked Exp. Sensor Array | -8/Materials | Scanalyzed Imp. Cryofiber Web | -8/Recycling | Hacked Imp. Utility Shielding | -8/Recycling | Hacked Imp. Powered Armor | -6/Garrison | Hacked Enh. Biometal Leg | -5/Factory | Hacked Adv. Hacking Suite | -4/Hub_04(d) | Hacked Nanosword | -4/Hub_04(d) | Hacked Adv. Power Amplifier | -4/Hub_04(d) | Hacked Cmb. Linear Gravjet | -3/Research | Hacked Exp. Hacking Suite | -3/Research | Hacked CPS Tube | -3/Research | Scanalyzed Electron Diverter | -3/Research | Scanalyzed Centrium Medium Armor Plating | -3/Research | Scanalyzed Femtoactuators | -3/Research | Hacked Exp. Actuator Array | -3/Research | Hacked Adv. Quantum Shading Machine | -3/Research | Hacked Zero-point Reactor | -3/Research | Hacked Cld. Q-thruster | -3/Research | Hacked Exp. Energy Well | -3/Research | Scanalyzed Exp. Q-thruster | -3/Testing | Hacked Coolant Network | -3/Testing | Scanalyzed Adv. Energy Well | -3/Testing | Archive Com. Mass Driver | -3/Testing | Archive Adv. Micro-nuke Launcher | -3/Testing | Archive Adv. Plasma Rifle | -3/Testing | Archive Quantum Shading Machine | -3/Testing | Archive Exp. Core Analyzer | -3/Testing | Hacked Exp. Biometal Heavy Treads | -3/Testing | Hacked Cld. Proton Cannon | -3/Testing | Archive Cld. Gravmag System | -3/Testing | Archive Cld. Impulse Thruster | -3/Testing | Scanalyzed Med. Regenerative Plating | -3/Testing | Hacked Lgt. Regenerative Plating | -3/Testing | Hacked Hvy. Tesla Rifle | -3/Testing | Archive Com. Particle Reactor | -3/Testing | Archive Exp. Transmission Jammer | -2/Research | Hacked Cld. Antimatter Reactor | -2/Quarantine | Archive Molecular Scythe | -2/Quarantine | Archive Exp. Cooling System | -2/Quarantine | Archive Adv. Gravity Neutralizer | -2/Quarantine | Archive Centrium Greatsword | -2/Protoforge | Archive Hvy. Proton Cannon | -2/Protoforge | Archive Exp. Coolant Injector | -2/Protoforge | Archive Hds. Centrium Leg | -2/Protoforge | Archive Robot Schematics ------------------ M-13 Machinist | -9/Materials | Hacked O-16 Technician | -9/Mines | Hacked B-74 Champion | -3/Testing | Archive R-10 Processor | -3/Testing | Archive G-67 Veteran | -3/Testing | Archive H-88 Terminator | -2/Quarantine | Hacked S-43 Plague | -2/Quarantine | Archive Fabricated ------------ CPS Tube | x1 | -3/Research | Authchip Femtoactuators | x1 | -3/Research | Authchip Cld. Q-thruster | x1 | -3/Research Zero-point Reactor | x1 | -3/Research Cmb. Linear Gravjet | x2 | -2/Research Exp. Transmission Jammer | x1 | -2/Research Exp. Sensor Array | x1 | -1/Access Repaired ---------- Exp. Sensor Array | 62% | -9/Materials | Broken Enh. Autogun | 45% | -8/Storage Enh. Autogun | 15% | -8/Storage Imp. VTOL Module | 70% | -8/Storage Centrium Wheel | 18% | -4/Factory Helical Railgun | 7% | -4/Factory | Broken Exp. Propulsion Shielding | 33% | -3/Testing Exp. Sensor Array | 13% | -2/Quarantine | Broken Studied --------- Autogun | -8/Materials | Hacked Lgt. Deuterium Engine | -8/Materials | Hacked VTOL Module | -8/Materials | Hacked Wheel | -6/Factory | Hacked Imp. Surge Thruster | -3/Research | Hacked Mic. Fission Core | -3/Research | Hacked Lgt. Antimatter Reactor | -3/Research | Hacked Field Propulsion Drive | -3/Research | Hacked Adv. Datajack | -3/Research | Hacked Enh. Force Lance | -3/Testing | Hacked Mic. Antimatter Reactor | -3/Testing | Hacked Cmb. Linear Gravjet | -2/Quarantine | Hacked Alien Tech Used ----------------- Core Expander Dimensional Node Initializer Sigix Broadsword Matter Drive Concept Nanofilaments [Tensile] Subatomic Replicator Transdimensional Reconstructor High-powered Transdimensional Reconstructor Achievements -------------- None Challenges ------------ None Game ------ Seed SuspensionTechMagmablaster Manual? 0 Play Time 12:26:04 Cumulative 1472.3 hours Start 2026.05.02 @ 20:06:52 End 2026.05.03 @ 08:57:28 Sessions 1 Manual Loads 0 Difficulty Rogue Special Mode None Game No. 478 Rogue 471 Adventurer 4 Explorer 3 Win Type 1 Total 46 Types 21/6/2/4/1/3/4/1/2/2 Lore% 97 Gallery% 95 Achievement% 88 Wizard Run 0 Options --------- Layout 2 ASCII 0 Keyboard 0 Movement Numpad Keybinds 0 Fullscreen 2 Font 24/Smallcaps Map View 50x44 Zoom Use 0% Tactical HUD 1 Map Filters NONE Filters NONE Steam 1 RUN: ab1587be-9e4f-4c08-9cc2-16eed60d2865